Workbook

Sheet Questions for producers (2) (hidden)
A1: There are 13 broad categories of revenue and expenses we would like to understand about your operation:
A2: Breeding herd
A3: Market animals sold
A4: Feed and hay
A5: Animal health and medical
A6: Pasture/Land/Fertilizer
A7: Fencing
A8: Equipment
A9: Fuel
A10: Labor
A11: Utilities
A12: Operating Loans
A13: Insurance
A14: Taxes
F15: Interview 1 responses
B16: woukd usually sell now, but is going to carry | E16: =#REF! ->  | F16: =#REF! -> 
E17: =#REF! ->  | F17: =#REF! -> 
E18: =#REF! ->  | F18: =#REF! -> 
A20: Breeding herd | B20: Oct 1 2017- Sept 30 2018 | C20: unit | E20: =#REF! ->  | F20: =#REF! -> 
A21: Number of breeding cows | B21: 50 | C21: head | D21: (includes heifers, potenitally already bred) | E21: =#REF! ->  | F21: =#REF! -> 
A22: Useful life of cow | B22: 9 | C22: years | E22: =#REF! ->  | F22: =#REF! -> 
A23: Cow salvage value (after useful life how much could you sell the cow for) | B23: 1150 | D23: inventory value of herd and charge an interest rate to it
A24: What percent of your cows have a calf that is sold or used a replacement each year? | B24: 0.9 | D24: maybe 85% last year, been 94% before | E24: =SUM(B62,B67,B35)/B21 -> 0.88
A25: What percent of your cows do you replace each year? | B25: 0.08 | C25: percent | E25: =#REF! ->  | F25: =#REF! -> 
A26: How many cows die per year on your farm | B26: 0 | C26: head | E26: =#REF! ->  | F26: =#REF! -> 
E27: =#REF! ->  | F27: =#REF! -> 
A28: Do you raise or purchase replacement heifers? | B28: raised, bought some cows last year and kept half, bred cows, paid $900 head,22 and sold half immediately, maybe have grown by 5 or 10 | E28: =#REF! ->  | F28: =#REF! -> 
E29: note from jenny: 9 years, 15% replacement?
A30: Number of purchased replacement heifers | B30: 0 | C30: head
A31: Age of replacement heifers (years) at purchase | C31: months | E31: =#REF! ->  | F31: =#REF! -> 
A32: Weight of replacement heifers (lbs.) at purchase | C32: lbs | E32: =#REF! ->  | F32: =#REF! -> 
A33: Price per cwt of replacement heifers | B33: 140 | C33: per cwt | D33: =B33*(B32/100) -> 0 | E33: =#REF! ->  | F33: =#REF! -> 
A35: Number of raised replacement heifers | B35: 4 | C35: head
A36: Age of replacement heifers in years | C36: months
A37: If sold, anticipated weight at sale | B37: 700 | C37: lbs
A38: Expected price per cwt of replacement heifers | B38: 140 | C38: per cwt
A40: Check on replacements and culls | B40: =SUM(B35,B30)=SUM(B72,B26) -> FALSE | C40: True if same, false if different
A42: # of bulls on your operation | B42: =F42 ->  | C42: head | E42: =#REF! ->  | F42: =#REF! -> 
A43: On average, how much do you pay for a bull ($/head) | B43: 2000 | C43: per head | E43: =#REF! ->  | F43: =#REF! -> 
A44: Useful life of bull (in years) | B44: 5 | C44: years | E44: =#REF! ->  | F44: =#REF! -> 
A45: Salvage value for the bull, meaning when you are ready to sell the bull, what price do you expect to receive? | B45: =0.9 *1800 -> 1620 | E45: =#REF! ->  | F45: =#REF! -> 
A49: Market animals sold | F49: Interview 1 responses
A50: Calving season | B50: =F50 ->  | C50: idea is 90 days | E50: =#REF! ->  | F50: =#REF! -> 
A51: At what age are your calves weaned? | B51: varies by year, some years don't pull them, will usually pull at 10 months, keep separate for 2 months and then put back together | C51: months
A52: When do you wean your calves? All at once? What happens after weaning? | B52: all at once when you pull, have used weaner rings before.
A53: At what age are your bull calves castrated? | B53: 3 months or less, used all methods, lately band, sometime californina band (quicker) | C53: months
A54: At what age do you typically transport calves to market or off the ranch to another stage of production (backgrounding, stocker, feed lot)? | B54: most sold at 700 lbs, bottom end will go to market, like one herd because easier, don't wean ewe lambs, stress, predator problems, will abort if heifer are too young | C54: months
A56: On average, how many calves/yearlings die per year? | B56: 2
A57: Do you know the cause of death if an animal dies on your ranch? | B57: blackleg, weather condition, wet and muddy
A59: In interview 1 you stated your operation primarily sold animals though X method. Can you please confirm and expand? Do you market all your calves at the same time or different times? If different, how many at one time? | E59: =#REF! ->  | F59: =#REF! ->  | G59: =#REF! ->  | H59: =#REF! -> 
A61: How do you haul animal to mkt | B61: custom hauler, $100 to stockyard, 20 yearlings, two trips per year, might sell bottom end at 500lbs, total of 45 | E61: Jenny wrote something about $1.20
A62: # of feeder steers sold | B62: 22 | E62: =#REF! ->  | F62: =#REF! -> 
A63: Average weight of feeder steer | B63: 600 | C63: lbs | D63: (sell about half around 500, might be 7 months to 9, 700 lbs | E63: =#REF! ->  | F63: =#REF! -> 
A64: Average age of feeder steers at sale | B64: 7 to 9 | C64: months | E64: =#REF! ->  | F64: =#REF! -> 
A65: Average price per cwt for feeder steer | B65: 1.45 | C65: per cwt | D65: younger- $1.45, older 700 about $1.45 due to differences in quality
E66: from Jenny, see calves 10 to 18 months
A67: # of feeder heifers sold | B67: =45-5-22 -> 18 | E67: =#REF! ->  | F67: =#REF! -> 
A68: Average weight of feeder heifer | B68: 600 | C68: lbs | E68: =#REF! ->  | F68: =#REF! -> 
A69: Average age of feeder heifer at sale | B69: 7 to 9 | C69: months | E69: =#REF! ->  | F69: =#REF! -> 
A70: Average price per cwt for feeder heifer | B70: 1.45 | C70: per cwt | E70: =#REF! ->  | F70: =#REF! -> 
E71: Notes from Jenny, $1.2 to $1.40
A72: # of cull cows sold | B72: 3.5 | C72: 3 or 4
A73: Average weight of cull cow | B73: 1100
A74: Average price per cwt for cull cow | B74: =Assumptions!B8 -> 53.2 | C74: pretty close, might be lower if don’t have weight, maybe .40 lb
A76: If you sold these animals at an auction what was the commission percent? (might also ask about check off) | B76: =Assumptions!B11 -> 0.02
A79: Do you quarantine new cattle brought onto your ranch? | B79: for 30 days
A82: Purchased feed
A83: Grain 1 description | B83: Range cubes | E83: =#REF! ->  | F83: =#REF! -> 
A84: How much do you feed? Maybe on a per animal per day is easier | B84: 50 lbs page
A85: Amount of grain purchased | C85: bag
A86: Cost per unit of grain | B86: =Assumptions!K37 -> 0 | C86: per bag
A88: Grain 2 description
A89: Amount of grain purchased | C89: ton
A90: Cost per unit of grain | C90: per ton
A92: HAY
A93: When is hay fed? | B93: jan, feb, march and part of april , other sperts throughout year for grass regrowth, about 3 rolls per day for 90 days, around 276
A94: Purchased Hay
A95: Alfalfa Hay description | B95: Purchased Alfalfa Hay | E95: =#REF! ->  | F95: =#REF! -> 
A96: Number of units purchased | B96: =200*0.1 -> 20 | C96: square bales | E96: =#REF! ->  | F96: =#REF! -> 
A97: Cost per unit of alfalfa | B97: 4 | C97: per bale | E97: =#REF! ->  | F97: =#REF! -> 
E98: =#REF! ->  | F98: =#REF! -> 
A99: Grass/Pasture Hay description | B99: Purchased Pature Hay | C99: 5.5 ewe= 1 animal unit, cows weigh 1000, 1 animal unit,
A100: Number of units purchased | B100: 250000 | C100: ton | E100: From Jenny: Buys hay, 200 rolls but note about using 300.
A101: Cost per unit of Grass/Pasture | B101: =38*2 -> 76 | C101: per ton
C102: 250 bales per year for both, 180 ewes/5.5, 50 cattle, 1000 lb rolls, 5X5 a few square bales, 200 alfalfa square bales mostly for sheep, $33 per bale + $5 delivery, $4 per alfalfa, 90%
A103: Homegrown Hay | B103: NONE | C103: if feeding more than 90 days then they are carrying to omany livestock
A104: Alfalfa Hay description | B104: Homegrown Alfalfa Hay
A105: Number of bales grown | C105: ton
A106: How much could you sell that hay for? | B106: =B97 -> 4 | C106: per ton
A108: Grass/Pasture Hay description | B108: Homegrown Pature Hay
A109: Number of bales grown | C109: ton
A110: How much could you sell that hay for? | B110: =B101 -> 76 | C110: per ton
A112: Supplements
A113: Minerals/Salt description | B113: loose mineral, southern states watersed 2 to 1,
A114: Amount of minerals/salt purchased | B114: 52 | C114: 50 lb bag
A115: Price per unit | B115: 28 | C115: per bag
A117: Supplement 2 description | B117: redman salt mineral, high selenium
A118: Amount of molasses purchased | B118: 40 | C118: 50 lb bags
A119: Price per unit | B119: 20
A121: Are there any additional supplements fed?
A122: If yes, cost of additional supplements
A124: Animal health
A125: Describe your animal health and vaccination program. | B125: nothing for the sheep, vet help with the cattle, blackleg, 7 way shot, for calves, blackleg for cows too, maybe not every year, no dewormer, no fly control, might deworm the few bad looking cows they are getting ride of, deworms about 10% of sheep
A126: Do you have an established client relationship with a veterinarian who helps you with herd health? | B126: yes, comes once a year
A127: Do you have a routine herd health program that includes annual vaccinations? | B127: yes
A128: What diseases do you vaccinate for? | B128: see above
A130: Vaccine 1 description | B130: $800 for cattle vaccinations
A131: Which type of animal is it given too (cows, bull, calves) | B131: =800/50 -> 16
A132: Vaccine 1 units per animal
A133: Vaccine 1 cost per unit
A134: Number of animals administered
A136: Vaccine 2 description
A137: Which type of animal is it given too (cows, bull, calves)
A138: Vaccine 2 units per animal
A139: Vaccine 2 cost per unit
A140: Number of animals administered
A142: Vaccine 3 description
A143: Which type of animal is it given too (cows, bull, calves)
A144: Vaccine 3 units per animal
A145: Vaccine 3 cost per unit
A146: Number of animals administered
A148: Vaccine 4 description
A149: Which type of animal is it given too (cows, bull, calves)
A150: Vaccine 4 units per animal
A151: Vaccine 4 cost per unit
A152: Number of animals administered
A155: Dewormer 1 description | B155: Cydectin- | C155: sheep- lavamsoyl
A156: Which type of animal is it given too (cows, bull, calves) | B156: less than 5 | C156: as little as zero and up too 200 with lambs, average is 50 lambs and a few ewes
A157: Dewormer 1 cost per unit | B157: =Assumptions!B70 -> 0.819 | C157: per mL
A158: Dewormer 1 units per animal | C158: ml
A159: Number of animals administered
A161: Cost of emergency vet visits per year | B161: 150 | C161: 25 to 50
A163: ID description (ear tags) | B163: eag tag
A164: Cost per unit | B164: y tech with star on back
A165: Number of units purchased per year | B165: 50
A167: At what age are animals identified? | B167: when born
A170: Fly control description | B170: no fly control
A171: Fly control units | B171: walk through $1000, more of a dairy use, cedar oil from fallen tree, 10 years
A172: Fly control price
A174: Do you make any other medical/veterinary/ID purchases
A175: If yes, other medical cost estimate per year
C178: months
A179: Are written or computer records kept for sick cattle, treatments, or death losses? | B179: keep in phone some with notes
A181: How often do you perform visual health checks of your herd? | B181: daily
A182: Do you condition score your cow herd? | B182: not written, doesn't want anything less than a 5
A184: Pasture
A185: How many acres is your farm? | B185: 680 | E185: =#REF! ->  | F185: =#REF! -> 
A186: How many grazable acres for cattle? | B186: 200 | E186: =#REF! ->  | F186: =#REF! -> 
A188: Do you rent any pasture? | B188: no | C188: Yes/No | E188: =#REF! ->  | F188: =#REF! -> 
A189: If yes, what is rental rate per acre per year? | C189: per acre | E189: =#REF! ->  | F189: =#REF! -> 
A190: If yes, how many acres are rented | C190: acres | E190: =#REF! ->  | F190: =#REF! -> 
A192: What is the current rental rate per acre for pasture of similar quality? | B192: $43 per acre | C192: Is it per acre or per animal unit | E192: =#REF! ->  | F192: =#REF! -> 
A193: Fertilizer | E193: =#REF! ->  | F193: =#REF! -> 
A194: Based on interview 1, you stated you applied the following fertilizers to your pastures. Can you please confirm and expand. | E194: =#REF! ->  | F194: =#REF! -> 
E195: =#REF! ->  | F195: =#REF! -> 
A196: Fertilizer 1 description | E196: =#REF! ->  | F196: =#REF! -> 
A197: How much fertilizer 1/year (lb./acre) | C197: gal/acre | E197: =#REF! ->  | F197: =#REF! -> 
A198: Cost of fertilizer 1 ($/lb.) | C198: per gal | E198: =#REF! ->  | F198: =#REF! -> 
A199: Acres applied | C199: acres | E199: =#REF! ->  | F199: =#REF! -> 
A200: Frequency (in years) | C200: time per yer
E201: =#REF! ->  | F201: =#REF! -> 
A202: Fertilizer 2 description | B202: Chicken litter | C202: 45 tons per year, 1.5 tons per ace | E202: =#REF! ->  | F202: =#REF! -> 
A203: How much fertilizer 2/year (lb./acre) | B203: 1.5 | C203: tons/acre | E203: =#REF! ->  | F203: =#REF! -> 
A204: Cost of fertilizer 2 ($/lb.) | B204: 40 | C204: per ton | D204: someone else spread
A205: Acres applied | B205: =45/1.5 -> 30 | C205: acres
A206: Frequency (in years) | B206: 1 | C206: time per yer
A208: Fertilizer 3 description | B208: Lime
A209: How much fertilizer 3/year (lb./acre) | B209: 1.5 | C209: tons/acre
A210: Cost of fertilizer 3 ($/lb.) | B210: 19 | C210: per ton | D210: 950
A211: Acres applied | B211: 33 | C211: acres
A212: Frequency (in years) | B212: 1 | C212: time per yer | D212: every 6 year
A214: Herbicides/Pesticides
A215: Herb/Pest description | B215: 24D | D215: For fence lines, 24D and cross bow and some glyphosphate, 2.5 gallons each, google those prices
A216: How much acre/year (lb./acre) | B216: 2.5 | C216: gallons
A217: Cost of unit ($/lb.) | B217: 25 | C217: gallon
A218: Acres applied | B218: fence lines
A219: Frequency (in years) | B219: 1
A221: Herb/Pest description | B221: crossbow
A222: How much acre/year (lb./acre) | B222: 2.5 | C222: gallons
A223: Cost of unit ($/lb.) | B223: 23 | C223: gallon
A224: Acres applied | B224: fence lines
A225: Frequency (in years) | B225: 1
A228: Cover crops/seed
A229: Based on interview 1, you stated you used the following cover crops. Can you please confirm and expand. | B229: no till seeding, winter annual intercropping, rye grass | E229: =#REF! ->  | F229: =#REF! -> 
A230: Cover crop type | B230: spend about $1700 on winter and summer annuals, clover and other, up to around $3000 | E230: =#REF! ->  | F230: =#REF! -> 
A231: Cost per unit | B231: 3000 | C231: total | D231: legumes, rye grass, annuals (cool season and summer) | E231: =#REF! ->  | F231: =#REF! -> 
A232: Units per acre
A233: Total acres | E233: =#REF! ->  | F233: =#REF! -> 
E234: =#REF! ->  | F234: =#REF! -> 
A235: Other pasture cost | E235: =#REF! ->  | F235: =#REF! -> 
A237: Fence
A238: Permanent fence type | B238: high tensile, average 5 strands, because of sheep | C238: Ex. Barber wire, # strands, field fence | E238: =#REF! ->  | F238: =#REF! -> 
A239: Linear miles of permanent fence | B239: 5 miles of permiter fence and then cross fencing, 16 permanent field with 12 acreas, 2000*16, 11 miles total | E239: =#REF! ->  | F239: =#REF! -> 
A240: price per foot installed | B240: =Assumptions!#REF! ->  | C240: per foot | E240: =#REF! ->  | F240: =#REF! -> 
A241: Number of gates | B241: 32 gates | E241: =#REF! ->  | F241: =#REF! -> 
A242: Cost per gate | B242: 40 | C242: per gate | E242: =#REF! ->  | F242: =#REF! -> 
A243: Poly wire length | B243: =1320*12 -> 15840 | C243: feet | E243: =#REF! ->  | F243: =#REF! -> 
A244: Poly wire cost per linear foot | B244: =Assumptions!#REF! ->  | C244: per linear foot | E244: =#REF! ->  | F244: =#REF! -> 
A245: # of Reels | B245: 12 | E245: =#REF! ->  | F245: =#REF! -> 
A246: Reel price | B246: =B244*1320 ->  | C246: per reel | E246: =#REF! ->  | F246: =#REF! -> 
... 147 more rows

Sheet Directions

Sheet Questions for Producers
A1: There are 11 broad categories of revenue and expenses we would like to understand about your enterprise:
A2: Note: Only include revenues and costs for cow-calf enterprise. If the cost or revenue is shared with another enterprise then change the allocation appropriately.
A3: Enterprise | B3: Cow-Calf
A4: Dates | B4: Oct 1 2017- Sept 30 2018
A6: Breeding Herd | C6: Unit | E6: Notes
A7: Current breeding cows
A8: Number of breeding cows | C8: head
A9: Useful life of cow | C9: years
A10: What percent of your cows have a calf that is sold or used as a replacement each year?
A11: What percent of your cows do you replace each year?
A12: How many cows die per year on your farm | C12: head
A14: Replacement heifers/cows purchased
A15: Number of purchased replacement heifers/cows | C15: head
A16: Age of replacement heifers/cows at purchase | C16: months
A17: Weight of replacement heifers (lbs.) at purchase | C17: lbs
A18: Price per hundred-weight (cwt) of replacement heifers | C18: per cwt
A20: Replacements heifers/cows retained from your herd
A21: Number of raised replacement heifers | C21: head
A22: If sold, at what age would you sell | C22: months
A23: If sold, anticipated weight at sale | C23: lbs
A24: Expected price per cwt of replacement heifers | C24: per cwt
A26: Breeding Bulls
A27: # of bulls on your cow-calf enterprise | C27: head
A28: On average, how much do you pay for a bull ($/head) | C28: per head
A29: Useful life of bull (in years) | C29: years
A30: Salvage value for the bull, meaning when you are ready to sell the bull, what price do you expect to receive? | C30: per head
A32: Cost of Artificial Insemination (A.I.) per year | C32: per year
A34: Market animals sold and marketing costs
A35: Feeder steers
A36: # of feeder steers sold | C36: head
A37: Average weight of feeder steer | C37: lbs
A38: Average age of feeder steers at sale | C38: months
A39: Average price per cwt for feeder steer | C39: per cwt
A41: Heifers
A42: # of feeder heifers sold | C42: head
A43: Average weight of feeder heifer | C43: lbs
A44: Average age of feeder heifer at sale | C44: months
A45: Average price per cwt for feeder heifer | C45: per cwt
A47: Bull Calves (Not Used on Herd)
A48: # of bull calves sold | C48: head
A49: Average weight of bull calf | C49: lbs
A50: Average age of bull calf at sale | C50: months
A51: Average price per cwt for bull calf | C51: per cwt
A53: Cull Cows
A54: # of cull cows sold | C54: head
A55: Average weight of cull cow | C55: lbs
A56: Average price per cwt for cull cow | C56: per cwt
A58: Commission percent if sold at auction
A59: Total cost of transport to market | C59: annually
A61: Beef check off assessment collected per head | C61: per head
A63: Feed
A64: Purchased
A65: Purchased Feed 1 Description
A66: Units | D66: 50 lb bag | E66: Note: 50 lb bag/ton/bushel drop down
A67: Total units of feed purchased per year | C67: =IF(B66=""," ",CONCATENATE(B66,"s")) ->  | D67: ton
A68: Price per unit of feed | C68: =IF(B66=""," ",CONCATENATE("per ",B66)) ->  | D68: bushel
D71: F2
A72: Purchased Feed 2 description | D72: F2
A73: Units | D73: F2
A74: Total units of feed purchased per year | C74: =IF(B73=""," ",CONCATENATE(B73,"s")) ->  | D74: F2
A75: Price per unit of feed | C75: =IF(B73=""," ",CONCATENATE("per ",B73)) ->  | D75: F2
D76: F2
D77: F2
D78: F2
A79: Purchased Feed 3 description | D79: F3
A80: Units | D80: F3
A81: Total units of feed purchased per year | C81: =IF(B80=""," ",CONCATENATE(B80,"s")) ->  | D81: F3
A82: Price per unit of feed | C82: =IF(B80=""," ",CONCATENATE("per ",B80)) ->  | D82: F3
D83: F3
A84: Homegrown
A85: Homegrown Feed 1 description
A86: Units
A87: Total units of feed fed per year | C87: =IF(B86=""," ",CONCATENATE(B86,"s")) -> 
A88: Price per unit of feed if you were to sell to someone else | C88: =IF(B86=""," ",CONCATENATE("per ",B86)) -> 
D91: HF2
A92: Homegrown Feed 2 description | D92: HF2
A93: Units | D93: HF2
A94: Total units of feed fed per year | C94: =IF(B93=""," ",CONCATENATE(B93,"s")) ->  | D94: HF2
A95: Price per unit of feed if you were to sell to someone else | C95: =IF(B93=""," ",CONCATENATE("per ",B93)) ->  | D95: HF2
D96: HF2
D97: HF2
D98: HF3
A99: Homegrown Feed 3 description | D99: HF3
A100: Units | D100: HF3
A101: Total units of feed fed per year | C101: =IF(B100=""," ",CONCATENATE(B100,"s")) ->  | D101: HF3
A102: Price per unit of feed if you were to sell to someone else | C102: =IF(B100=""," ",CONCATENATE("per ",B100)) ->  | D102: HF3
A104: Hay
A105: Purchased
A106: Purchased Hay 1 description | D106: square bale
A107: Units for hay 1 | D107: round bale | E107: Note: square/round/1,000 lb bale drop down
A108: Number of units purchased | C108: =IF(B107=""," ",CONCATENATE(B107,"s")) ->  | D108: 1,000 lb bale
A109: Price per unit | C109: =IF(B107=""," ",CONCATENATE("per ",B107)) -> 
D112: PH2
A113: Purchased Hay 2 description | D113: PH2
A114: Units for hay 2 | D114: PH2
A115: Number of units purchased | C115: =IF(B114=""," ",CONCATENATE(B114,"s")) ->  | D115: PH2
A116: Price per unit | C116: =IF(B114=""," ",CONCATENATE("per ",B114)) ->  | D116: PH2
D117: PH2
A118: Homegrown
A119: Homegrown Hay 1 description
A120: Unit for hay
A121: Number of units grown | C121: =IF(B120=""," ",CONCATENATE(B120,"s")) -> 
A122: How much could you sell it for per unit | C122: =IF(B120=""," ",CONCATENATE("per ",B120)) -> 
D125: HH2
A126: Homegrown Hay 2 description | D126: HH2
A127: Unit for hay | D127: HH2
A128: Number of units grown | C128: =IF(B127=""," ",CONCATENATE(B127,"s")) ->  | D128: HH2
A129: How much could you sell it for per unit | C129: =IF(B127=""," ",CONCATENATE("per ",B127)) ->  | D129: HH2
A131: Supplements
A132: Supplement 1 description
A133: Units for supplement | E133: *Note: given the variety of supplements please fill in your units
A134: Amount of supplement purchased | C134: =IF(B133=""," ",CONCATENATE(B133,"s")) -> 
A135: Price per unit | C135: =IF(B133=""," ",CONCATENATE("per ",B133)) -> 
D138: S2
A139: Supplement 2 description | D139: S2 | E139: *Note: given the variety of supplements please fill in your units
A140: Units for supplement | D140: S2
A141: Amount of supplement purchased | C141: =IF(B140=""," ",CONCATENATE(B140,"s")) ->  | D141: S2
A142: Price per unit | C142: =IF(B140=""," ",CONCATENATE("per ",B140)) ->  | D142: S2
D143: S2
D144: S2
D145: S3
A146: Supplement 3 description | D146: S3 | E146: *Note: given the variety of supplements please fill in your units
A147: Units for supplement | D147: S3
A148: Amount of supplement purchased | C148: =IF(B147=""," ",CONCATENATE(B147,"s")) ->  | D148: S3
A149: Price per unit | C149: =IF(B147=""," ",CONCATENATE("per ",B147)) ->  | D149: S3
A151: If other feed/hay/supplements, enter total annual cost here | C151: per year
A153: Animal health
A154: Vaccines | D154: calves
A155: Vaccine 1 description | D155: cows
A156: Which type of animal is it given too | D156: bull(s) | E156: Note: calves/cows/bull(s) drop down
A157: Vaccine 1 units | E157: Note: shot/mL drop down
A158: Vaccine 1 units administered per animal | C158: =IF(B157=""," ",CONCATENATE(B157,"s")) -> 
A159: Vaccine 1 cost per unit | C159: =IF(B157=""," ",CONCATENATE("per ",B157)) ->  | D159: shot
A160: Number of animals administered | C160: head | D160: mL
D163: V2
A164: Vaccine 2 description | D164: V2
A165: Which type of animal is it given too | D165: V2
A166: Vaccine 2 units | D166: V2
A167: Vaccine 2 units per animal | C167: =IF(B166=""," ",CONCATENATE(B166,"s")) ->  | D167: V2
A168: Vaccine 2 cost per unit | C168: =IF(B166=""," ",CONCATENATE("per ",B166)) ->  | D168: V2
A169: Number of animals administered | C169: head | D169: V2
D170: V2
D171: V2
D172: V3
A173: Vaccine 3 description | D173: V3
A174: Which type of animal is it given too (cows, bull, calves) | D174: V3
A175: Vaccine 3 units | D175: V3
A176: Vaccine 3 units per animal | C176: =IF(B175=""," ",CONCATENATE(B175,"s")) ->  | D176: V3
A177: Vaccine 3 cost per unit | C177: =IF(B175=""," ",CONCATENATE("per ",B175)) ->  | D177: V3
A178: Number of animals administered | C178: head | D178: V3
D179: V3
D180: V3
D181: V4
A182: Vaccine 4 description | D182: V4
A183: Which type of animal is it given too | D183: V4
A184: Vaccine 4 units | D184: V4
A185: Vaccine 4 units per animal | C185: =IF(B184=""," ",CONCATENATE(B184,"s")) ->  | D185: V4
A186: Vaccine 4 cost per unit | C186: =IF(B184=""," ",CONCATENATE("per ",B184)) ->  | D186: V4
A187: Number of animals administered | C187: head | D187: V4
D188: V4
A189: Dewormer
A190: Dewormer 1 description
A191: Which type of animal is it given too
A192: Dewormer 1 units
A193: Dewormer 1 units per animal | C193: =IF(B192=""," ",CONCATENATE(B192,"s")) -> 
A194: Dewormer 1 cost per unit | C194: =IF(B192=""," ",CONCATENATE("per ",B192)) -> 
A195: Number of animals administered | C195: head
D198: DW2
A199: Dewormer 2 description | D199: DW2
A200: Which type of animal is it given too | D200: DW2
A201: Dewormer 2 units | D201: DW2
A202: Dewormer 2 units per animal | C202: =IF(B201=""," ",CONCATENATE(B201,"s")) ->  | D202: DW2
A203: Dewormer 2 cost per unit | C203: =IF(B201=""," ",CONCATENATE("per ",B201)) ->  | D203: DW2
A204: Number of animals administered | C204: head | D204: DW2
A206: Vet Visits
A207: Cost of planned vet visits per year | C207: per year
A208: Cost of emergency vet visits per year | C208: per year
A210: ID description (ear tags)
A211: Cost per unit | C211: per unit
A212: Number of units purchased per year | C212: per year
A214: Fly control costs per year including sprays, rubs, brushes, etc.
A216: Other medical cost per year | C216: per year
A219: Pasture
A220: Acreage
A221: Total acres of your farm | C221: acres
A222: Acres dedicated to cow-calf enterprise | C222: acres
A224: Acres rented for cow-calf enterprise | C224: acres
A225: Rental rate per acre per year | C225: per acre
A227: Acres owned for cow-calf enterprise | C227: acres
A228: Although you own those acres, what is the current rental rate per acre for pasture of similar quality? | C228: per acre
A230: Fertilizer
A231: Fertilizer 1 description
A232: Fertilizer 1 units | E232: Note: gal/lb drop down
A233: Fertilizer 1 units per acre | C233: =IF(B232=""," ",CONCATENATE(B232,"s")) ->  | D233: gal
A234: Fertilizer 1 cost per unit | C234: =IF(B232=""," ",CONCATENATE("per ",B232)) ->  | D234: lb
A235: Acres applied | C235: acres
A236: Frequency (in years) | C236: times per year
D239: F2
A240: Fertilizer 2 description | D240: F2
A241: Fertilizer 2 units | D241: F2
... 275 more rows

Sheet Fencing
H1: Assumptions:
H3: Fencing Type: | I3: Installation Cost: $/ft | J3: Economic Life: Years | K3: Annual Replacement
H4: Woven Wire | I4: 1.93 | J4: 20 | K4: 0.08
H5: Barbed Wire | I5: 1.48 | J5: 20 | K5: 0.08
H6: High-Tensile Non-Electric | I6: 1.24 | J6: 25 | K6: 0.05
H7: High-Tensile Electric | I7: 0.89 | J7: 25 | K7: 0.05
H8: Electrified Polywire | I8: 0.04 | J8: 4 | K8: 0.05
A14: Permanent Fence:
A15: Runs: | B15: Fence Type: | C15: Feet: | D15: Installation Cost: $/ft | E15: Miles: | F15: Installation Cost: $/mi.
A16: Run 1 | E16: =C16/5280 -> 0 | F16: =D16*(5280) -> 0
A17: Run 2 | E17: =C17/5280 -> 0 | F17: =D17*(5280) -> 0
A18: Run 3 | E18: 0 | F18: 0
A19: Run 4 | E19: 0 | F19: 0
A20: Run 5 | E20: 0 | F20: 0
A21: Run 6 | E21: 0 | F21: 0
A22: Run 7 | E22: 0 | F22: 0
A23: Run 8 | E23: 0 | F23: 0
A24: Run 9 | E24: 0 | F24: 0
A25: Run 10 | E25: 0 | F25: 0
A27: Total Linear Miles of Permanent Fence: | C27: =SUM(E16:E25) -> 0
A29: Total Installation Cost: | C29: =SUMPRODUCT(E16:E25,F16:F25) -> 0

Sheet Enterprise budget
A1: Estimated returns and expenses for cow-calf operation
A3: Revenue
B4: Quantity | C4: Units | D4: Price | E4: Units | F4: $/cow | G4: $/herd
A6: Heifer calves | B6: =Marketing!B15 -> 0 | C6: lb. | D6: =Marketing!B17 -> 0 | E6: $/lb. | F6: =Marketing!B20 -> 0 | G6: =Marketing!B19 -> 0
A7: Steer calves | B7: =Marketing!B5 -> 0 | C7: lb. | D7: =Marketing!B7 -> 0 | E7: $/lb. | F7: =Marketing!B10 -> 0 | G7: =Marketing!B9 -> 0
A8: Bull calves | B8: =Marketing!B27 -> 0 | C8: lb. | D8: =Marketing!B29 -> 0 | E8: $/lb. | F8: =Marketing!B32 -> 0 | G8: =Marketing!B31 -> 0
A9: Cull cows | B9: =Marketing!B37 -> 0 | C9: lb. | D9: =Marketing!B39 -> 0 | E9: $/lb. | F9: =Marketing!B42 -> 0 | G9: =Marketing!B41 -> 0
A10: Other Revnue | F10: =IF('Breeding Herd'!B4>0,G10/'Breeding Herd'!B4,"0") -> 0 | G10: ='Questions for Producers'!B557 -> 0
A11: Gross Income | F11: =SUM(F6:F10) -> 0 | G11: =SUM(G6:G10) -> 0
A13: Variable Costs | F13: $/cow | G13: $/herd
A14: Bull charge/A.I. Costs | F14: ='Breeding Herd'!B45 -> 0 | G14: ='Breeding Herd'!B44 -> 0
A15: Replacement females | F15: ='Breeding Herd'!B28 -> 0 | G15: ='Breeding Herd'!B27 -> 0
A16: Marketing | F16: =Marketing!B53 -> 0 | G16: =Marketing!B52 -> 0
A17: Feed | F17: ='Feed, Hay, Supplements'!B43 -> 0 | G17: ='Feed, Hay, Supplements'!B42 -> 0
A18: Hay | F18: ='Feed, Hay, Supplements'!B73 -> 0 | G18: ='Feed, Hay, Supplements'!B72 -> 0
A19: Mineral/supplements | F19: ='Feed, Hay, Supplements'!B96 -> 0 | G19: ='Feed, Hay, Supplements'!B95 -> 0
A20: Veterinary, medicine, and identification | F20: ='Animal Health'!B77 -> 0 | G20: ='Animal Health'!B76 -> 0
A21: Pasture care | F21: =Pasture!B90 -> 0 | G21: =Pasture!B89 -> 0
A22: Equipment and facility repairs | F22: =IF('Breeding Herd'!$B$4>0,'Equipment and Facilities'!B36+(('Equipment and Facilities'!B54+'Equipment and Facilities'!B74+'Equipment and Facilities'!B88+'Equipment and Facilities'!B97+'Equipment and Facilities'!B105)/'Breeding Herd'!B4)+'Equipment and Facilities'!B220,"0") -> 0 | G22: ='Equipment and Facilities'!B219+'Equipment and Facilities'!B105+'Equipment and Facilities'!B97+'Equipment and Facilities'!B88+'Equipment and Facilities'!B74+'Equipment and Facilities'!B54+'Equipment and Facilities'!B35 -> 0
A24: Labor | F24: =Labor!B61 -> 0 | G24: =Labor!B60 -> 0
A25: Education | F25: =Labor!B66 -> 0 | G25: =Labor!B65 -> 0
A26: Fuel | F26: ='Fuel and Utilities'!B13 -> 0 | G26: ='Fuel and Utilities'!B12 -> 0
A27: Utilities | F27: ='Fuel and Utilities'!B37 -> 0 | G27: ='Fuel and Utilities'!B39 -> 0
A28: Interest on operating capital | F28: ='Operating Loan and Interest'!B11 -> 0 | G28: ='Fuel and Utilities'!B36 -> 0
A29: Land Charge | F29: =Pasture!B14 -> 0 | G29: =Pasture!B13 -> 0
A30: Other variable costs | F30: =IF('Breeding Herd'!$B$4>0,G30/'Breeding Herd'!B4,"0") -> 0 | G30: ='Questions for Producers'!B560 -> 0
A31: Total variable costs | F31: =SUM(F14:F30) -> 0 | G31: =SUM(G14:G30) -> 0
A33: Fixed Costs
A34: Equipment Depreciation | F34: ='Equipment and Facilities'!B217+'Equipment and Facilities'!B194 -> 0 | G34: ='Equipment and Facilities'!B216+'Equipment and Facilities'!B193 -> 0
A35: Facilitites Depreciation | F35: ='Equipment and Facilities'!B108+'Equipment and Facilities'!B77+'Equipment and Facilities'!B57+'Equipment and Facilities'!B33 -> 0 | G35: ='Equipment and Facilities'!B32+'Equipment and Facilities'!B56+'Equipment and Facilities'!B76+'Equipment and Facilities'!B107 -> 0
A36: Farm/livestock insurance | F36: =Insurance!B27 -> 0 | G36: =Insurance!B26 -> 0
A37: Taxes | F37: =Taxes!B9 -> 0 | G37: =Taxes!B8 -> 0
A38: Other fixed costs | F38: =IF('Breeding Herd'!$B$4>0,G38/'Breeding Herd'!B4,"0") -> 0 | G38: ='Questions for Producers'!B561 -> 0
A39: Total fixed costs | F39: =SUM(F34:F38) -> 0 | G39: =SUM(G34:G38) -> 0
A41: Total costs | F41: =F39+F31 -> 0 | G41: =G39+G31 -> 0
A43: Income over variable costs | F43: =F11-F31 -> 0 | G43: =G11-G31 -> 0
A44: Income over total costs | F44: =F11-F41 -> 0 | G44: =G11-G41 -> 0

Sheet Breeding Herd
B1: ='Questions for Producers'!B4 -> Oct 1 2017- Sept 30 2018 | F1: Coming from "Questions from producers tab"
F2: Formula
A3: Cows
A4: Number of breeding cows | B4: ='Questions for Producers'!B8 -> 0 | C4: ='Questions for Producers'!C8 -> head
A5: Useful life of cow | B5: ='Questions for Producers'!B9 -> 0 | C5: ='Questions for Producers'!C9 -> years
A6: Cow salvage value | B6: =Marketing!B40 -> 0 | C6: per head
A7: Weaning percentage | B7: =IF(B4>0,(Marketing!B4+Marketing!B14+'Breeding Herd'!B19)/'Breeding Herd'!B4,"0") -> 0
A8: Cow replacement percentage | B8: =IF(B4>0,(B11+B19)/'Breeding Herd'!B4,"0") -> 0
A10: Replacement heifers
A11: Number of purchased replacement heifers | B11: ='Questions for Producers'!B15 -> 0 | C11: ='Questions for Producers'!C15 -> head
A12: Age of replacement heifers (years) | B12: ='Questions for Producers'!B16 -> 0 | C12: ='Questions for Producers'!C16 -> months
A13: Weight of replacement heifers (lbs.) | B13: ='Questions for Producers'!B17 -> 0 | C13: ='Questions for Producers'!C17 -> lbs
A14: Price per cwt of replacement heifers | B14: ='Questions for Producers'!B18 -> 0 | C14: ='Questions for Producers'!C24 -> per cwt
A15: Replacement heifer price per head | B15: =(B13/100)*B14 -> 0
A16: Total cost of replacement heifers | B16: =B15*B11 -> 0
A18: Raised replacement heifers
A19: Number of raised replacement heifers | B19: ='Questions for Producers'!B21 -> 0 | C19: ='Questions for Producers'!C21 -> head
A20: Age of replacement heifers in years | B20: ='Questions for Producers'!B22 -> 0 | C20: ='Questions for Producers'!C22 -> months
A21: Weight of replacement heifers (lbs.) if sol | B21: ='Questions for Producers'!B23 -> 0 | C21: ='Questions for Producers'!C23 -> lbs
A22: Expected price per cwt of replacement heifers | B22: ='Questions for Producers'!B24 -> 0 | C22: ='Questions for Producers'!C24 -> per cwt
A23: Replacement heifer value per head | B23: =(B21/100)*B22 -> 0
A24: Total value of replacement heifers | B24: =B23*B19 -> 0
A26: Implied replacement rate | B26: =IF(B4>0,(B11+B19)/B4,"0") -> 0
A27: TOTAL VALUE OF REPLACEMENT HEIFERS | B27: =B16+B24 -> 0
A28: TOTAL VALUE OF REPLACEMENT HEIFERS PER COW | B28: =IF(B4>0,B27/$B$4,"0") -> 0
A30: Bulls
A31: Number of bulls | B31: ='Questions for Producers'!B27 -> 0 | C31: ='Questions for Producers'!C27 -> head
A32: Value of bull ($/head) | B32: ='Questions for Producers'!B28 -> 0 | C32: ='Questions for Producers'!C28 -> per head
A33: Total bull value | B33: =B32*B31 -> 0
A34: Useful life of bull (in years) | B34: ='Questions for Producers'!B29 -> 0 | C34: ='Questions for Producers'!C29 -> years
A35: Salvage value of bull | B35: ='Questions for Producers'!B30 -> 0
A36: Total bull depreciation (or charge) per year | B36: =IF(B34>0,((B32-B35)/B34)*2,"0") -> 0
A38: Average number of cows per bull | B38: =IF(B31>0,B4/B31,"0") -> 0
A39: Percent of bull to charge per cow | B39: =IF(B31>0,1/B38,"0") -> 0
A40: Bull charge per cow per year | B40: =B36*B39 -> 0
A42: ='Questions for Producers'!A32 -> Cost of Artificial Insemination (A.I.) per year | B42: ='Questions for Producers'!B32 -> 0 | C42: ='Questions for Producers'!C32 -> per year
A44: TOTAL BULL AND A.I. COST | B44: =(B36*2)+B42 -> 0
A45: Total bull and A.I. cost per cow | B45: =IF(B4>0,B44/B4,"0") -> 0
A47: Depreciation
A48: Cow straight line per year | B48: =IF(B5>0,(B23-B6)/B5,"0") -> 0
A49: Bull straight line per year | B49: =IF(B34>0,(B32-B35)/B34,"0") -> 0

Sheet Marketing
B1: ='Questions for Producers'!B4 -> Oct 1 2017- Sept 30 2018 | F1: Coming from "Questions from producers tab"
F2: Formula
A3: Steers
A4: Feeder steers sold | B4: ='Questions for Producers'!B36 -> 0 | C4: ='Questions for Producers'!C36 -> head
A5: Average weight of feeder steer | B5: ='Questions for Producers'!B37 -> 0 | C5: ='Questions for Producers'!C37 -> lbs
A6: Average price per cwt for feeder steer | B6: ='Questions for Producers'!B39 -> 0 | C6: ='Questions for Producers'!C39 -> per cwt
A7: Average price per lb for feeder steer | B7: =B6/100 -> 0
A8: Implied feeder steer revenue per head | B8: =(B5/100)*B6 -> 0
A9: Revenue from feeder steers | B9: =B8*B4 -> 0
A10: Steer revenue per cow | B10: =IF('Breeding Herd'!B$4>0,B9/'Breeding Herd'!B$4,"0") -> 0
A11: ='Questions for Producers'!A38 -> Average age of feeder steers at sale | B11: ='Questions for Producers'!B38 -> 0 | C11: ='Questions for Producers'!C38 -> months
A13: Heifers
A14: Feeder heifers sold | B14: ='Questions for Producers'!B42 -> 0 | C14: ='Questions for Producers'!C42 -> head
A15: Average weight of feeder heifer | B15: ='Questions for Producers'!B43 -> 0 | C15: ='Questions for Producers'!C43 -> lbs
A16: Average price per cwt for feeder heifer | B16: ='Questions for Producers'!B45 -> 0 | C16: ='Questions for Producers'!C45 -> per cwt
A17: Average price per lb for heifers | B17: =B16/100 -> 0 | C17: per lb
A18: Implied feeder heifer revenue per head | B18: =(B15/100)*B16 -> 0
A19: Revenue from feeder heifers | B19: =B18*B14 -> 0
A20: Heifer revenue per cow | B20: =IF('Breeding Herd'!B$4>0,B19/'Breeding Herd'!B$4,"0") -> 0
A21: ='Questions for Producers'!A44 -> Average age of feeder heifer at sale | B21: ='Questions for Producers'!B44 -> 0 | C21: ='Questions for Producers'!C44 -> months
A23: Implied weaning percentage | B23: =IF('Breeding Herd'!$B$4>0,(B4+B14)/'Breeding Herd'!$B$4,"0") -> 0
A25: Bull Calves
A26: Bull calves sold | B26: ='Questions for Producers'!B48 -> 0 | C26: ='Questions for Producers'!C48 -> head
A27: Average weight of bull calf | B27: ='Questions for Producers'!B49 -> 0 | C27: ='Questions for Producers'!C49 -> lbs
A28: Average price per cwt for bull calf | B28: ='Questions for Producers'!B51 -> 0 | C28: ='Questions for Producers'!C51 -> per cwt
A29: Average price per lb for bull calf | B29: =B28/100 -> 0
A30: Implied bull calf revenue per head | B30: =(B27/100)*B28 -> 0
A31: Revenue from bull calves | B31: =B30*B26 -> 0
A32: Bull revenue per cow | B32: =IF('Breeding Herd'!B$4>0,B31/'Breeding Herd'!B$4,"0") -> 0
A33: Average age of bull calf at sale | B33: ='Questions for Producers'!B50 -> 0 | C33: ='Questions for Producers'!C50 -> months
A35: Cull Cows
A36: Cull cows sold | B36: ='Questions for Producers'!B54 -> 0 | C36: ='Questions for Producers'!C54 -> head
A37: Average weight of cull cow | B37: ='Questions for Producers'!B55 -> 0 | C37: ='Questions for Producers'!C55 -> lbs
A38: Average price per cwt for cull cow | B38: ='Questions for Producers'!B56 -> 0 | C38: ='Questions for Producers'!C56 -> per cwt
A39: Average price per lb for cull cow | B39: =B38/100 -> 0
A40: Implied cull cow revenue per head | B40: =(B37/100)*B38 -> 0
A41: Revenue from cull cows | B41: =B40*B36 -> 0
A42: Cull cow revenue per cow | B42: =IF('Breeding Herd'!$B$4>0,B41/'Breeding Herd'!B$4,"0") -> 0
A43: Implied cull cow percent | B43: =IF('Breeding Herd'!$B$4>0,B36/'Breeding Herd'!B4,"0") -> 0
A45: Total gross revenue from animal sales | B45: =SUM(B9,B19,B41) -> 0
A47: Marketing Costs
A48: Assumed market cost percent | B48: ='Questions for Producers'!B58 -> 0
A49: Implied marketing costs | B49: =B48*B45 -> 0
A50: Transport to market costs | B50: ='Questions for Producers'!B59 -> 0 | C50: ='Questions for Producers'!C59 -> annually
A51: Beef check off assessment paid | B51: =SUM(B4,B14,B36)*'Questions for Producers'!B61 -> 0
A52: Total marketing costs | B52: =SUM(B49:B51) -> 0
A53: Marketing costs per cow | B53: =IF('Breeding Herd'!$B$4>0,(B52)/'Breeding Herd'!B$4,"0") -> 0

Sheet Feed, Hay, Supplements
B1: ='Questions for Producers'!B4 -> Oct 1 2017- Sept 30 2018 | F1: Coming from "Questions from producers tab"
F2: Formula
A3: FEED
A4: Purchased Feed
A5: ='Questions for Producers'!A65 -> Purchased Feed 1 Description | B5: ='Questions for Producers'!B65 -> 0
A6: Amount of Feed purchased | B6: ='Questions for Producers'!B67 -> 0 | C6: ='Questions for Producers'!C67 -> 
A7: Cost per unit of Feed | B7: ='Questions for Producers'!B68 -> 0 | C7: ='Questions for Producers'!C68 -> 
A8: Feed 1 total cost | B8: =B6*B7 -> 0
A9: Feed 1 total cost per cow | B9: =IF('Breeding Herd'!$B$4>0,B8/'Breeding Herd'!$B$4,"0") -> 0
A11: Feed 2 description | B11: ='Questions for Producers'!B72 -> 0
A12: Amount of Feed purchased | B12: ='Questions for Producers'!B74 -> 0 | C12: ='Questions for Producers'!C74 -> 
A13: Cost per unit of Feed | B13: ='Questions for Producers'!B75 -> 0 | C13: ='Questions for Producers'!C75 -> 
A14: Feed 2 total cost | B14: =B12*B13 -> 0
A15: Feed 2 total cost per cow | B15: =IF('Breeding Herd'!$B$4>0,B14/'Breeding Herd'!$B$4,"0") -> 0
A17: Feed 3 description | B17: ='Questions for Producers'!B79 -> 0
A18: Amount of Feed purchased | B18: ='Questions for Producers'!B81 -> 0 | C18: ='Questions for Producers'!C81 -> 
A19: Cost per unit of Feed | B19: ='Questions for Producers'!B82 -> 0 | C19: ='Questions for Producers'!C82 -> 
A20: Feed 3 total cost | B20: =B18*B19 -> 0
A21: Feed 3 total cost per cow | B21: =IF('Breeding Herd'!$B$4>0,B20/'Breeding Herd'!$B$4,"0") -> 0
A23: Homegrown Feed
A24: Homegrown Feed 1 description | B24: ='Questions for Producers'!B85 -> 0
A25: Total units of feed fed per year | B25: ='Questions for Producers'!B87 -> 0 | C25: ='Questions for Producers'!C87 -> 
A26: Value per unit of feed if you were to sell to someone else | B26: ='Questions for Producers'!B88 -> 0 | C26: ='Questions for Producers'!C88 -> 
A27: Feed 1 total cost | B27: =B25*B26 -> 0
A28: Feed 1 total cost per cow | B28: =IF('Breeding Herd'!$B$4>0,B27/'Breeding Herd'!$B$4,"0") -> 0
A30: Homegrown Feed 2 description | B30: ='Questions for Producers'!B92 -> 0
A31: Total units of feed fed per year | B31: ='Questions for Producers'!B94 -> 0 | C31: ='Questions for Producers'!C94 -> 
A32: Value per unit of feed if you were to sell to someone else | B32: ='Questions for Producers'!B95 -> 0 | C32: ='Questions for Producers'!C95 -> 
A33: Feed 2 total cost | B33: =B31*B32 -> 0
A34: Feed 2 total cost per cow | B34: =IF('Breeding Herd'!$B$4>0,B33/'Breeding Herd'!$B$4,"0") -> 0
A36: Homegrown Feed 3 description | B36: ='Questions for Producers'!B99 -> 0
A37: Total units of feed fed per year | B37: ='Questions for Producers'!B94 -> 0 | C37: ='Questions for Producers'!C94 -> 
A38: Value per unit of feed if you were to sell to someone else | B38: ='Questions for Producers'!B102 -> 0 | C38: ='Questions for Producers'!C102 -> 
A39: Feed 3 total cost | B39: =B37*B38 -> 0
A40: Feed 3 total cost per cow | B40: =IF('Breeding Herd'!$B$4>0,B39/'Breeding Herd'!$B$4,"0") -> 0
A42: TOTAL FEED COSTS | B42: =SUM(B8,B14,B20,B27,B33,B39) -> 0
A43: Total feed costs per cow | B43: =IF('Breeding Herd'!$B$4>0,B42/'Breeding Herd'!$B$4,"0") -> 0
A45: HAY
A46: Purchased Hay
A47: Hay 1 description | B47: ='Questions for Producers'!B106 -> 0
A48: Number of units purchased | B48: ='Questions for Producers'!B108 -> 0 | C48: ='Questions for Producers'!C108 -> 
A49: Price per unit | B49: ='Questions for Producers'!B109 -> 0 | C49: ='Questions for Producers'!C109 -> 
A50: Hay 1 total cost | B50: =B48*B49 -> 0
A51: Hay 1 total cost per cow | B51: =IF('Breeding Herd'!$B$4>0,B50/'Breeding Herd'!$B$4,"0") -> 0
A53: Hay 2 description | B53: ='Questions for Producers'!B113 -> 0
A54: Number of units purchased | B54: ='Questions for Producers'!B115 -> 0 | C54: ='Questions for Producers'!C115 -> 
A55: Price per unit | B55: ='Questions for Producers'!B116 -> 0 | C55: ='Questions for Producers'!C116 -> 
A56: Hay 2 total cost | B56: =B54*B55 -> 0
A57: Hay 2 total cost per cow | B57: =IF('Breeding Herd'!$B$4>0,B56/'Breeding Herd'!$B$4,"0") -> 0
A59: Homegrown Hay
A60: Hay 1 description | B60: ='Questions for Producers'!B119 -> 0
A61: Number of units purchased | B61: ='Questions for Producers'!B121 -> 0 | C61: ='Questions for Producers'!C121 -> 
A62: Price per unit | B62: ='Questions for Producers'!B122 -> 0 | C62: ='Questions for Producers'!C122 -> 
A63: Hay 1 total cost | B63: =B61*B62 -> 0
A64: Hay 1 total cost per cow | B64: =IF('Breeding Herd'!$B$4>0,B63/'Breeding Herd'!$B$4,"0") -> 0
A66: Hay 2 description | B66: ='Questions for Producers'!B126 -> 0
A67: Number of units purchased | B67: ='Questions for Producers'!B128 -> 0 | C67: ='Questions for Producers'!C128 -> 
A68: Price per unit | B68: ='Questions for Producers'!B129 -> 0
A69: Hay 2 total cost | B69: =B67*B68 -> 0
A70: Hay 2 total cost per cow | B70: =IF('Breeding Herd'!$B$4>0,B69/'Breeding Herd'!$B$4,"0") -> 0
A72: TOTAL HAY COSTS | B72: =SUM(B69,B63,B56,B50) -> 0
A73: Total hay costs per cow | B73: =IF('Breeding Herd'!$B$4>0,B72/'Breeding Herd'!$B$4,"0") -> 0
A75: Supplements
A76: Supplement 1 | B76: ='Questions for Producers'!B132 -> 0
A77: Amount of supplement 1 purchased | B77: ='Questions for Producers'!B134 -> 0 | C77: ='Questions for Producers'!C134 -> 
A78: Price per unit | B78: ='Questions for Producers'!B135 -> 0 | C78: ='Questions for Producers'!C135 -> 
A79: Supplement 1 total cost | B79: =B77*B78 -> 0
A80: Supplement 1 total cost per cow | B80: =IF('Breeding Herd'!$B$4>0,B79/'Breeding Herd'!$B$4,"0") -> 0
A82: Supplement 2 | B82: ='Questions for Producers'!B139 -> 0
A83: Amount of supplement 2 purchased | B83: ='Questions for Producers'!B141 -> 0 | C83: ='Questions for Producers'!C141 -> 
A84: Price per unit | B84: ='Questions for Producers'!B142 -> 0 | C84: ='Questions for Producers'!C142 -> 
A85: Supplement 2 total cost | B85: =B83*B84 -> 0
A86: Supplement 2 total cost per cow | B86: =IF('Breeding Herd'!$B$4>0,B85/'Breeding Herd'!$B$4,"0") -> 0
A88: Supplement 3 | B88: ='Questions for Producers'!B146 -> 0
A89: Amount of supplement 3 purchased | B89: ='Questions for Producers'!B148 -> 0 | C89: ='Questions for Producers'!C148 -> 
A90: Price per unit | B90: ='Questions for Producers'!B149 -> 0 | C90: ='Questions for Producers'!C149 -> 
A91: Supplement 3 total cost | B91: =B89*B90 -> 0
A92: Supplement 3 total cost per cow | B92: =IF('Breeding Herd'!$B$4>0,B91/'Breeding Herd'!$B$4,"0") -> 0
A95: TOTAL SUPPLEMENT COSTS | B95: =SUM(B79,B85,B91) -> 0
A96: Total supplement costs per cow | B96: =IF('Breeding Herd'!$B$4>0,B95/'Breeding Herd'!$B$4,"0") -> 0
A98: Other feed costs | B98: ='Questions for Producers'!B151 -> 0 | C98: per year
A100: TOTAL FEED COSTS | B100: =SUM(B42,B72,B95,B98) -> 0
A101: Total feed costs per cow | B101: =IF('Breeding Herd'!$B$4>0,B100/'Breeding Herd'!$B$4,"0") -> 0

Sheet Animal Health
B1: ='Questions for Producers'!B4 -> Oct 1 2017- Sept 30 2018 | F1: Coming from "Questions from producers tab"
F2: Formula
A3: Vaccination Regime
A4: Vaccine 1 description | B4: ='Questions for Producers'!B155 -> 0
A5: Which type of animal is it given too | B5: ='Questions for Producers'!B156 -> 0
A6: Vaccine 1 units per animal | B6: ='Questions for Producers'!B158 -> 0 | C6: ='Questions for Producers'!C158 -> 
A7: Vaccine 1 cost per unit | B7: ='Questions for Producers'!B159 -> 0 | C7: ='Questions for Producers'!C159 -> 
A8: Number of animals administered | B8: ='Questions for Producers'!B160 -> 0 | C8: ='Questions for Producers'!C160 -> head
A9: Vaccine 1 total cost | B9: =B7*B6*B8 -> 0
A11: Vaccine 2 description | B11: ='Questions for Producers'!B164 -> 0
A12: Which type of animal is it given too | B12: ='Questions for Producers'!B165 -> 0
A13: Vaccine 2 units per animal | B13: ='Questions for Producers'!B167 -> 0 | C13: ='Questions for Producers'!C167 -> 
A14: Vaccine 2 cost per unit | B14: ='Questions for Producers'!B168 -> 0 | C14: ='Questions for Producers'!C168 -> 
A15: Number of animals administered | B15: ='Questions for Producers'!B169 -> 0 | C15: ='Questions for Producers'!C169 -> head
A16: Vaccine 2 total cost | B16: =B14*B13*B15 -> 0
A18: Vaccine 3 description | B18: ='Questions for Producers'!B173 -> 0
A19: Which type of animal is it given too | B19: ='Questions for Producers'!B174 -> 0
A20: Vaccine 3 units per animal | B20: ='Questions for Producers'!B176 -> 0 | C20: ='Questions for Producers'!C176 -> 
A21: Vaccine 3 cost per unit | B21: ='Questions for Producers'!B177 -> 0 | C21: ='Questions for Producers'!C177 -> 
A22: Number of animals administered | B22: ='Questions for Producers'!B178 -> 0 | C22: ='Questions for Producers'!C178 -> head
A23: Vaccine 3 total cost | B23: =B21*B20*B22 -> 0
A25: Vaccine 4 description | B25: ='Questions for Producers'!B182 -> 0
A26: Which type of animal is it given too | B26: ='Questions for Producers'!B183 -> 0
A27: Vaccine 4 units per animal | B27: ='Questions for Producers'!B185 -> 0 | C27: ='Questions for Producers'!C185 -> 
A28: Vaccine 4 cost per unit | B28: ='Questions for Producers'!B186 -> 0 | C28: ='Questions for Producers'!C186 -> 
A29: Number of animals administered | B29: ='Questions for Producers'!B187 -> 0 | C29: ='Questions for Producers'!C187 -> head
A30: Vaccine 4 total cost | B30: =B28*B27*B29 -> 0
A32: TOTAL VACCINE COSTS | B32: =SUM(B30,B23,B16,B9) -> 0
A33: Total vaccine costs per cow | B33: =IF('Breeding Herd'!$B$4>0,B32/'Breeding Herd'!$B$4,"0") -> 0
A35: Deworming
A36: Dewormer 1 description | B36: ='Questions for Producers'!B190 -> 0
A37: Which type of animal is it given too | B37: ='Questions for Producers'!B191 -> 0
A38: Dewormer 1 cost per unit | B38: ='Questions for Producers'!B193 -> 0 | C38: ='Questions for Producers'!C193 -> 
A39: Dewormer 1 units per animal | B39: ='Questions for Producers'!B194 -> 0 | C39: ='Questions for Producers'!C194 -> 
A40: Number of animals administered | B40: ='Questions for Producers'!B195 -> 0 | C40: ='Questions for Producers'!C195 -> head
A41: Dewormer 1 total cost | B41: =B38*B39*B40 -> 0
A43: Dewormer 2 description | B43: ='Questions for Producers'!B199 -> 0
A44: Which type of animal is it given too | B44: ='Questions for Producers'!B200 -> 0
A45: Dewormer 2 cost per unit | B45: ='Questions for Producers'!B202 -> 0 | C45: ='Questions for Producers'!C202 -> 
A46: Dewormer 2 units per animal | B46: ='Questions for Producers'!B203 -> 0 | C46: ='Questions for Producers'!C203 -> 
A47: Number of animals administered | B47: ='Questions for Producers'!B204 -> 0 | C47: ='Questions for Producers'!C204 -> head
A48: Dewormer 2 total cost | B48: =B45*B46*B47 -> 0
A50: TOTAL DEWORMING COSTS | B50: =SUM(B48,B41) -> 0
A51: Total deworming costs per cow | B51: =IF('Breeding Herd'!$B$4>0,B50/'Breeding Herd'!$B$4,"0") -> 0
A53: Emergency vet visits
A54: ='Questions for Producers'!A207 -> Cost of planned vet visits per year | B54: ='Questions for Producers'!B207 -> 0 | C54: ='Questions for Producers'!C207 -> per year
A55: Cost of emergency vet visits per year | B55: ='Questions for Producers'!B208 -> 0 | C55: ='Questions for Producers'!C208 -> per year
A57: TOTAL VET COSTS | B57: =SUM(B54:B55) -> 0
A58: Total vet costs per cow | B58: =IF('Breeding Herd'!$B$4>0,B57/'Breeding Herd'!$B$4,"0") -> 0
A60: Identification costs
A61: ID description | B61: ='Questions for Producers'!B210 -> 0
A62: Cost per unit | B62: ='Questions for Producers'!B211 -> 0 | C62: ='Questions for Producers'!C211 -> per unit
A63: Number of units purchased | B63: ='Questions for Producers'!B212 -> 0 | C63: ='Questions for Producers'!C212 -> per year
A65: TOTAL ID COSTS | B65: =B62*B63 -> 0
A66: Total ID costs per cow | B66: =IF('Breeding Herd'!$B$4>0,B65/'Breeding Herd'!$B$4,"0") -> 0
A68: Other animal health costs
A69: Fly control | B69: ='Questions for Producers'!B214 -> 0
A70: Other medication cost estimate | B70: ='Questions for Producers'!B216 -> 0
A72: TOTAL OTHER ANIMAL HEALTH COSTS | B72: =SUM(B69:B70) -> 0
A73: Total other animal health costs per cow | B73: =IF('Breeding Herd'!$B$4>0,B72/'Breeding Herd'!$B$4,"0") -> 0
A76: TOTAL MEDICAL AND ID COSTS | B76: =SUM(B72,B65,B55,B50,B32) -> 0
A77: Total medical and ID costs per cow | B77: =IF('Breeding Herd'!$B$4>0,B76/'Breeding Herd'!$B$4,"0") -> 0

Sheet Pasture
B1: ='Questions for Producers'!B4 -> Oct 1 2017- Sept 30 2018 | F1: Coming from "Questions from producers tab"
F2: Formula
A3: Acreage
A4: ='Questions for Producers'!A221 -> Total acres of your farm | B4: ='Questions for Producers'!B221 -> 0 | C4: ='Questions for Producers'!C221 -> acres
A5: ='Questions for Producers'!A222 -> Acres dedicated to cow-calf enterprise | B5: ='Questions for Producers'!B222 -> 0 | C5: ='Questions for Producers'!C222 -> acres
A6: ='Questions for Producers'!A224 -> Acres rented for cow-calf enterprise | B6: ='Questions for Producers'!B224 -> 0 | C6: ='Questions for Producers'!C224 -> acres
A7: ='Questions for Producers'!A225 -> Rental rate per acre per year | B7: ='Questions for Producers'!B225 -> 0 | C7: ='Questions for Producers'!C225 -> per acre
A8: ='Questions for Producers'!A227 -> Acres owned for cow-calf enterprise | B8: ='Questions for Producers'!B227 -> 0 | C8: ='Questions for Producers'!C227 -> acres
A9: Potential rental rate of owned acres | B9: ='Questions for Producers'!B228 -> 0 | C9: ='Questions for Producers'!C228 -> per acre
A10: Total acres per cow (stocking rate) | B10: =IF('Breeding Herd'!B4>0,B5/'Breeding Herd'!B4,"0") -> 0
A11: Total acres per breeding animal | B11: =IF('Breeding Herd'!B4>0,B5/('Breeding Herd'!B4+'Breeding Herd'!B31),"0") -> 0
A13: TOTAL LAND COST | B13: =SUM((B6*B7),(B8*B9)) -> 0
A14: Total land cost per cow | B14: =IF('Breeding Herd'!B4>0,B13/'Breeding Herd'!B4,"0") -> 0
A16: Fertilizer
A17: ='Questions for Producers'!A231 -> Fertilizer 1 description | B17: ='Questions for Producers'!B231 -> 0
A18: ='Questions for Producers'!A232 -> Fertilizer 1 units | B18: ='Questions for Producers'!B232 -> 0
A19: ='Questions for Producers'!A233 -> Fertilizer 1 units per acre | B19: ='Questions for Producers'!B233 -> 0 | C19: ='Questions for Producers'!C233 -> 
A20: ='Questions for Producers'!A234 -> Fertilizer 1 cost per unit | B20: ='Questions for Producers'!B234 -> 0 | C20: ='Questions for Producers'!C234 -> 
A21: ='Questions for Producers'!A235 -> Acres applied | B21: ='Questions for Producers'!B235 -> 0 | C21: ='Questions for Producers'!C235 -> acres
A22: ='Questions for Producers'!A236 -> Frequency (in years) | B22: ='Questions for Producers'!B236 -> 0 | C22: ='Questions for Producers'!C236 -> times per year
A23: Cost per year | B23: =IF(B22>0,B21*B19*B20*(1/B22),"0") -> 0
A25: ='Questions for Producers'!A240 -> Fertilizer 2 description | B25: ='Questions for Producers'!B240 -> 0
A26: ='Questions for Producers'!A241 -> Fertilizer 2 units | B26: ='Questions for Producers'!B241 -> 0
A27: ='Questions for Producers'!A242 -> Fertilizer 2 units per acre | B27: ='Questions for Producers'!B242 -> 0 | C27: ='Questions for Producers'!C242 -> 
A28: ='Questions for Producers'!A243 -> Fertilizer 2 cost per unit | B28: ='Questions for Producers'!B243 -> 0 | C28: ='Questions for Producers'!C243 -> 
A29: ='Questions for Producers'!A244 -> Acres applied | B29: ='Questions for Producers'!B244 -> 0 | C29: ='Questions for Producers'!C244 -> acres
A30: ='Questions for Producers'!A245 -> Frequency (in years) | B30: ='Questions for Producers'!B245 -> 0 | C30: ='Questions for Producers'!C245 -> times per year
A31: Cost per year | B31: =IF(B30>0,B29*B27*B28*(1/B30),"0") -> 0
A33: ='Questions for Producers'!A249 -> Fertilizer 3 description | B33: ='Questions for Producers'!B249 -> 0
A34: ='Questions for Producers'!A250 -> Fertilizer 3 units | B34: ='Questions for Producers'!B250 -> 0
A35: ='Questions for Producers'!A251 -> Fertilizer 3 units per acre | B35: ='Questions for Producers'!B251 -> 0 | C35: ='Questions for Producers'!C251 -> 
A36: ='Questions for Producers'!A252 -> Fertilizer 3 cost per unit | B36: ='Questions for Producers'!B252 -> 0 | C36: ='Questions for Producers'!C252 -> 
A37: ='Questions for Producers'!A253 -> Acres applied | B37: ='Questions for Producers'!B253 -> 0 | C37: ='Questions for Producers'!C253 -> acres
A38: ='Questions for Producers'!A254 -> Frequency (in years) | B38: ='Questions for Producers'!B254 -> 0 | C38: ='Questions for Producers'!C254 -> times per year
A39: Cost per year | B39: =IF(B38>0,B37*B35*B36*(1/B38),"0") -> 0
A42: TOTAL FERTILIZER COST | B42: =SUM(B39,B31,B23) -> 0
A43: Total fertilizer cost per cow | B43: =IF('Breeding Herd'!B4>0,B42/'Breeding Herd'!B4,"0") -> 0
A46: ='Questions for Producers'!A256 -> Herbicides/Pesticides
A47: ='Questions for Producers'!A257 -> Herb/Pest 1 description | B47: ='Questions for Producers'!B257 -> 0
A48: ='Questions for Producers'!A258 -> Herb/Pest 1 units | B48: ='Questions for Producers'!B258 -> 0
A49: ='Questions for Producers'!A259 -> Herb/Pest 1 units per acre | B49: ='Questions for Producers'!B259 -> 0 | C49: ='Questions for Producers'!C259 -> 
A50: ='Questions for Producers'!A260 -> Herb/Pest 1 cost per unit | B50: ='Questions for Producers'!B260 -> 0 | C50: ='Questions for Producers'!C260 -> 
A51: ='Questions for Producers'!A261 -> Acres applied | B51: ='Questions for Producers'!B261 -> 0 | C51: ='Questions for Producers'!C261 -> acres
A52: ='Questions for Producers'!A262 -> Frequency (in years) | B52: ='Questions for Producers'!B262 -> 0 | C52: ='Questions for Producers'!C262 -> times per year
A53: Cost per year | B53: =IF(B52>0,B49*B50*B51*(1/B52),"0") -> 0
A55: ='Questions for Producers'!A266 -> Herb/Pest 2 description | B55: ='Questions for Producers'!B266 -> 0
A56: ='Questions for Producers'!A267 -> Herb/Pest 2 units | B56: ='Questions for Producers'!B267 -> 0
A57: ='Questions for Producers'!A268 -> Herb/Pest 2 units per acre | B57: ='Questions for Producers'!B268 -> 0 | C57: ='Questions for Producers'!C268 -> 
A58: ='Questions for Producers'!A269 -> Herb/Pest 2 cost per unit | B58: ='Questions for Producers'!B269 -> 0 | C58: ='Questions for Producers'!C269 -> 
A59: ='Questions for Producers'!A270 -> Acres applied | B59: ='Questions for Producers'!B270 -> 0 | C59: ='Questions for Producers'!C270 -> acres
A60: ='Questions for Producers'!A271 -> Frequency (in years) | B60: ='Questions for Producers'!B271 -> 0 | C60: ='Questions for Producers'!C271 -> times per year
A61: Cost per year | B61: =IF(B60>0,B57*B58*B59*(1/B60),"0") -> 0
A64: TOTAL HERBICIDE/PESTICIDE COST | B64: =B61+B53 -> 0
A65: Total herbicide/pesticide cost per cow | B65: =IF('Breeding Herd'!B4>0,B64/'Breeding Herd'!B4,"0") -> 0
A68: Cover Crops/Seed
A69: ='Questions for Producers'!A274 -> Cover crop 1 description | B69: ='Questions for Producers'!B274 -> 0
A70: ='Questions for Producers'!A275 -> Cover crop 1 unit | B70: ='Questions for Producers'!B275 -> 0
A71: ='Questions for Producers'!A276 -> Cover crop 1 units per acre | B71: ='Questions for Producers'!B276 -> 0 | C71: ='Questions for Producers'!C276 -> 
A72: ='Questions for Producers'!A277 -> Cover crop 1 cost per unit | B72: ='Questions for Producers'!B277 -> 0 | C72: ='Questions for Producers'!C277 -> 
A73: ='Questions for Producers'!A278 -> Acres applied | B73: ='Questions for Producers'!B278 -> 0 | C73: ='Questions for Producers'!C278 -> acres
A74: Cost per year | B74: =B73*B72*B71 -> 0
A76: ='Questions for Producers'!A282 -> Cover crop 2 description | B76: ='Questions for Producers'!B282 -> 0
A77: ='Questions for Producers'!A283 -> Cover crop 2 unit | B77: ='Questions for Producers'!B283 -> 0
A78: ='Questions for Producers'!A284 -> Cover crop 2 units per acre | B78: ='Questions for Producers'!B284 -> 0 | C78: ='Questions for Producers'!C284 -> 
A79: ='Questions for Producers'!A285 -> Cover crop 2 cost per unit | B79: ='Questions for Producers'!B285 -> 0 | C79: ='Questions for Producers'!C285 -> 
A80: ='Questions for Producers'!A286 -> Acres applied | B80: ='Questions for Producers'!B286 -> 0 | C80: ='Questions for Producers'!C286 -> acres
A81: Cost per year | B81: =B78*B80*B79 -> 0
A83: TOTAL COVER CROP COST | B83: =SUM(B74,B81) -> 0
A84: Total cover crop cost per cow | B84: =IF('Breeding Herd'!B4>0,B83/'Breeding Herd'!B4,"0") -> 0
A86: ='Questions for Producers'!A288 -> Other pasture cost | B86: ='Questions for Producers'!B288 -> 0
A87: Other pasture cost per cow | B87: =IF('Breeding Herd'!B4>0,B86/'Breeding Herd'!B4,"0") -> 0
A89: TOTAL PASTURE CARE COST | B89: =B83+B42+B64+B86 -> 0
A90: Total pasture care cost per cow | B90: =IF('Breeding Herd'!B4>0,B89/'Breeding Herd'!B4,"0") -> 0

Sheet Labor
B1: ='Questions for Producers'!B4 -> Oct 1 2017- Sept 30 2018 | F1: Coming from "Questions from producers tab"
F2: Formula
A3: ='Questions for Producers'!A492 -> Primary Operator Labor
A4: ='Questions for Producers'!A493 -> Hours per week on cow-calf enterprise | B4: ='Questions for Producers'!B493 -> 0 | C4: ='Questions for Producers'!C493 -> hours per week
A5: ='Questions for Producers'!A494 -> Work weeks per year | B5: ='Questions for Producers'!B494 -> 0 | C5: ='Questions for Producers'!C494 -> weeks
A6: ='Questions for Producers'!A495 -> Value of operator labor | B6: ='Questions for Producers'!B495 -> 0 | C6: ='Questions for Producers'!C495 -> per hour
A7: Total hours per year | B7: =B4*B5 -> 0
A8: Total operator labor hours per cow | B8: =IF('Breeding Herd'!$B$4>0,B7/'Breeding Herd'!$B$4,"0") -> 0
A9: Total primary operator costs | B9: =B6*B7 -> 0
A10: Total primary operator labor costs per cow | B10: =IF('Breeding Herd'!$B$4>0,B9/'Breeding Herd'!$B$4,"0") -> 0
A12: ='Questions for Producers'!A497 -> Family Labor
A13: ='Questions for Producers'!A498 -> Family member 1 name | B13: ='Questions for Producers'!B498 -> 0
A14: ='Questions for Producers'!A499 -> Hours per week | B14: ='Questions for Producers'!B499 -> 0 | C14: ='Questions for Producers'!C499 -> hours per week
A15: ='Questions for Producers'!A500 -> Work weeks per year | B15: ='Questions for Producers'!B500 -> 0 | C15: ='Questions for Producers'!C500 -> weeks
A16: ='Questions for Producers'!A501 -> Wage | B16: ='Questions for Producers'!B501 -> 0 | C16: ='Questions for Producers'!C501 -> per hour
A17: Family member 1 labor hours per year | B17: =B14*B15 -> 0
A18: Family member 1 labor hours per cow | B18: =IF('Breeding Herd'!$B$4>0,B17/'Breeding Herd'!$B$4,"0") -> 0
A19: Family member 1 labor costs | B19: =B16*B17 -> 0
A20: Family member 1 labor costs per cow | B20: =IF('Breeding Herd'!$B$4>0,B19/'Breeding Herd'!$B$4,"0") -> 0
A22: ='Questions for Producers'!A505 -> Family member 2 name | B22: ='Questions for Producers'!B505 -> 0
A23: ='Questions for Producers'!A506 -> Hours per week | B23: ='Questions for Producers'!B506 -> 0 | C23: ='Questions for Producers'!C506 -> hours per week
A24: ='Questions for Producers'!A507 -> Work weeks per year | B24: ='Questions for Producers'!B507 -> 0 | C24: ='Questions for Producers'!C507 -> weeks
A25: ='Questions for Producers'!A508 -> Wage | B25: ='Questions for Producers'!B508 -> 0 | C25: ='Questions for Producers'!C508 -> per hour
A26: Family member 2 labor hours per year | B26: =B23*B24 -> 0
A27: Family member 2 labor hours per cow | B27: =IF('Breeding Herd'!$B$4>0,B26/'Breeding Herd'!$B$4,"0") -> 0
A28: Family member 2 labor costs | B28: =B25*B26 -> 0
A29: Family member 2 labor costs per cow | B29: =IF('Breeding Herd'!$B$4>0,B28/'Breeding Herd'!$B$4,"0") -> 0
A31: Total family labor hours per year | B31: =B26+B17 -> 0
A32: Total family labor hours per year per cow | B32: =B27+B18 -> 0
A33: Total family labor costs | B33: =B28+B19 -> 0
A34: Total family labor costs per cow | B34: =B29+B20 -> 0
A36: ='Questions for Producers'!A510 -> Hired Labor
A37: ='Questions for Producers'!A511 -> Hired labor 1 name | B37: ='Questions for Producers'!B511 -> 0
A38: ='Questions for Producers'!A512 -> Hours per week | B38: ='Questions for Producers'!B512 -> 0 | C38: ='Questions for Producers'!C512 -> hours per week
A39: ='Questions for Producers'!A513 -> Work weeks per year | B39: ='Questions for Producers'!B513 -> 0 | C39: ='Questions for Producers'!C513 -> weeks
A40: ='Questions for Producers'!A514 -> Wage | B40: ='Questions for Producers'!B514 -> 0 | C40: ='Questions for Producers'!C514 -> per hour
A41: Total hired labor 1 hours per year | B41: =B38*B39 -> 0
A42: Total hired labor 1 hours per year per cow | B42: =IF('Breeding Herd'!$B$4>0,B41/'Breeding Herd'!$B$4,"0") -> 0
A43: Total hired labor 1 costs | B43: =B40*B41 -> 0
A44: Total hired labor 1 costs per cow | B44: =IF('Breeding Herd'!$B$4>0,B43/'Breeding Herd'!$B$4,"0") -> 0
A46: ='Questions for Producers'!A518 -> Hired labor 2 name | B46: ='Questions for Producers'!B518 -> 0
A47: ='Questions for Producers'!A519 -> Hours per week | B47: ='Questions for Producers'!B519 -> 0 | C47: ='Questions for Producers'!C519 -> hours per week
A48: ='Questions for Producers'!A520 -> Work weeks per year | B48: ='Questions for Producers'!B520 -> 0 | C48: ='Questions for Producers'!C520 -> weeks
A49: ='Questions for Producers'!A521 -> Wage | B49: ='Questions for Producers'!B521 -> 0 | C49: ='Questions for Producers'!C521 -> per hour
A50: Total hired labor 2 hours per year | B50: =B47*B48 -> 0
A51: Total hired labor 2 hours per year per cow | B51: =IF('Breeding Herd'!$B$4>0,B50/'Breeding Herd'!$B$4,"0") -> 0
A52: Total hired labor 2 costs | B52: =B49*B50 -> 0
A53: Total hired labor 2 costs per cow | B53: =IF('Breeding Herd'!$B$4>0,B52/'Breeding Herd'!$B$4,"0") -> 0
A55: Total hired labor hours per year | B55: =B50+B41 -> 0
A56: Total hired labor hours per year per cow | B56: =B51+B42 -> 0
A57: Total hired labor costs | B57: =B52+B43 -> 0
A58: Total hired labor costs per cow | B58: =B53+B44 -> 0
A60: TOTAL LABOR EXPENSES | B60: =SUM(B9,B33,B57) -> 0
A61: Total labor and educational expenses per cow | B61: =IF('Breeding Herd'!$B$4>0,B60/'Breeding Herd'!$B$4,"0") -> 0
A62: Total labor hours per cow | B62: =SUM(B56,B32,B8) -> 0
A64: Educational Expenses
A65: ='Questions for Producers'!A523 -> Costs for educational events, magazine subscriptions, conferences, etc. | B65: ='Questions for Producers'!B523 -> 0
A66: Total educational expenses per cow | B66: =IF('Breeding Herd'!$B$4>0,B65/'Breeding Herd'!$B$4,"0") -> 0

Sheet Equipment and Facilities
B1: ='Questions for Producers'!B4 -> Oct 1 2017- Sept 30 2018 | F1: Coming from "Questions from producers tab"
F2: Formula
A3: ='Questions for Producers'!A291 -> Buildings/Structures/Facilities
A4: ='Questions for Producers'!A292 -> Buildings/Structures/Facilities 1 description | B4: ='Questions for Producers'!B292 -> 0
A5: ='Questions for Producers'!A293 -> Age | B5: ='Questions for Producers'!B293 -> 0 | C5: ='Questions for Producers'!C293 -> years
A6: ='Questions for Producers'!A294 -> Useful life | B6: ='Questions for Producers'!B294 -> 0 | C6: ='Questions for Producers'!C294 -> years
A7: ='Questions for Producers'!A295 -> Purchase price | B7: ='Questions for Producers'!B295 -> 0
A8: ='Questions for Producers'!A296 -> Salvage value at end of useful life | B8: ='Questions for Producers'!B296 -> 0
A9: ='Questions for Producers'!A297 -> Percent of use allocated to cow-calf enterprise | B9: ='Questions for Producers'!B297 -> 0
A10: Depreciation per year | B10: =IF(B6>0,(B7-B8)/B6,"0") -> 0
A11: Depreciation cost per year allocated to cow-calf enterprise | B11: =B9*B10 -> 0
A13: ='Questions for Producers'!A301 -> Buildings/Structures/Facilities 2 description | B13: ='Questions for Producers'!B301 -> 0
A14: ='Questions for Producers'!A302 -> Age | B14: ='Questions for Producers'!B302 -> 0 | C14: ='Questions for Producers'!C302 -> years
A15: ='Questions for Producers'!A303 -> Useful life | B15: ='Questions for Producers'!B303 -> 0 | C15: ='Questions for Producers'!C303 -> years
A16: ='Questions for Producers'!A304 -> Purchase price | B16: ='Questions for Producers'!B304 -> 0
A17: ='Questions for Producers'!A305 -> Salvage value at end of useful life | B17: ='Questions for Producers'!B305 -> 0
A18: ='Questions for Producers'!A306 -> Percent of use allocated to cow-calf enterprise | B18: ='Questions for Producers'!B306 -> 0
A19: Depreciation per year | B19: =IF(B15>0,(B16-B17)/B15,"0") -> 0
A20: Depreciation cost per year allocated to cow-calf enterprise | B20: =B19*B18 -> 0
A22: ='Questions for Producers'!A310 -> Buildings/Structures/Facilities 3 description | B22: ='Questions for Producers'!B310 -> 0
A23: ='Questions for Producers'!A311 -> Age | B23: ='Questions for Producers'!B311 -> 0 | C23: ='Questions for Producers'!C311 -> years
A24: ='Questions for Producers'!A312 -> Useful life | B24: ='Questions for Producers'!B312 -> 0 | C24: ='Questions for Producers'!C312 -> years
A25: ='Questions for Producers'!A313 -> Purchase price | B25: ='Questions for Producers'!B313 -> 0
A26: ='Questions for Producers'!A314 -> Salvage value at end of useful life | B26: ='Questions for Producers'!B314 -> 0
A27: ='Questions for Producers'!A315 -> Percent of use allocated to cow-calf enterprise | B27: ='Questions for Producers'!B315 -> 0
A28: Depreciation per year | B28: =IF(B24>0,(B25-B26)/B24,"0") -> 0
A29: Depreciation cost per year allocated to cow-calf enterprise | B29: =B28*B27 -> 0
A31: Total facilities depreciation cost per year | B31: =B28+B19+B10 -> 0
A32: TOTAL FACILITIES DEPRECIATION COST PER YEAR ALLOCATED TO COW-CALF ENTERPRISE | B32: =B11+B20+B29 -> 0
A33: Total facilities depreciation allocated to cow-calf enterprise per year per cow | B33: =IF('Breeding Herd'!$B$4>0,B32/'Breeding Herd'!$B$4,"0") -> 0
A35: ='Questions for Producers'!A317 -> Buildings/Structures/Facilities repair and upkeep costs estimate per year | B35: ='Questions for Producers'!B317 -> 0
A36: Estimated facility repair costs per year per cow | B36: =IF('Breeding Herd'!$B$4>0,B35/'Breeding Herd'!$B$4,"0") -> 0
A38: Fence
A39: Permanent Fence
A40: ='Questions for Producers'!A321 -> Type | B40: ='Questions for Producers'!B321 -> 0
A41: ='Questions for Producers'!A322 -> Linear miles | B41: ='Questions for Producers'!B322 -> 0 | C41: ='Questions for Producers'!C322 -> miles
A42: ='Questions for Producers'!A323 -> Total installation cost | B42: ='Questions for Producers'!B323 -> 0
A44: ='Questions for Producers'!A325 -> Gates
A45: ='Questions for Producers'!A326 -> Number of gates | B45: ='Questions for Producers'!B326 -> 0 | C45: ='Questions for Producers'!C326 -> gates
A46: ='Questions for Producers'!A327 -> Cost per gate | B46: ='Questions for Producers'!B327 -> 0 | C46: ='Questions for Producers'!C327 -> per gate
A47: Gate total cost | B47: =B45*B46 -> 0
A48: TOTAL PERMANENT FENCE INVESTMENT | B48: =B47+B42 -> 0
A50: ='Questions for Producers'!A329 -> How long do the permanent fence materials last | B50: ='Questions for Producers'!B329 -> 0 | C50: ='Questions for Producers'!C329 -> years
A51: ='Questions for Producers'!A330 -> Percent of permanent fence repaired each year | B51: ='Questions for Producers'!B330 -> 0 | C51: ='Questions for Producers'!C330 -> per year
A53: Depreciation of permanent fence per year | B53: =IF(B50>0,B48/B50,"0") -> 0
A54: Replacement cost of permanent fence per year | B54: =B48*B51 -> 0
A56: TOTAL PERMANENT FENCE ANNUAL COST | B56: =SUM(B53:B54) -> 0
A57: Total permanent fence annual cost per cow | B57: =IF('Breeding Herd'!$B$4>0,B56/'Breeding Herd'!$B$4,"0") -> 0
A59: ='Questions for Producers'!A332 -> Temporary Fence
A60: ='Questions for Producers'!A333 -> Poly wire length | B60: ='Questions for Producers'!B333 -> 0 | C60: ='Questions for Producers'!C333 -> feet
A61: ='Questions for Producers'!A334 -> Poly wire cost per linear foot | B61: ='Questions for Producers'!B334 -> 0 | C61: ='Questions for Producers'!C334 -> per linear foot
A62: ='Questions for Producers'!A335 -> Number of Reels | B62: ='Questions for Producers'!B335 -> 0
A63: ='Questions for Producers'!A336 -> Cost per reel | B63: ='Questions for Producers'!B336 -> 0 | C63: ='Questions for Producers'!C336 -> per reel
A64: ='Questions for Producers'!A337 -> Number of pushing posts | B64: ='Questions for Producers'!B337 -> 0 | C64: ='Questions for Producers'!C337 -> posts
A65: ='Questions for Producers'!A338 -> Cost per pushing post | B65: ='Questions for Producers'!B338 -> 0 | C65: ='Questions for Producers'!C338 -> per post
A66: ='Questions for Producers'!A339 -> Number of electrical chargers | B66: ='Questions for Producers'!B339 -> 0 | C66: ='Questions for Producers'!C339 -> permanent chargers
A67: ='Questions for Producers'!A340 -> Cost per charger | B67: ='Questions for Producers'!B340 -> 0 | C67: ='Questions for Producers'!C340 -> per charger
A68: TOTAL INVESTMENT IN TEMPORARY FENCE | B68: =(B60*B61)+(B62*B63)+(B64*B65)+(B66*B67) -> 0
A70: ='Questions for Producers'!A342 -> How long do the temporary fence materials last | B70: ='Questions for Producers'!B342 -> 0 | C70: ='Questions for Producers'!C342 -> years
A71: ='Questions for Producers'!A343 -> Percent of temporary fence repaired each year | B71: ='Questions for Producers'!B343 -> 0 | C71: ='Questions for Producers'!C343 -> per year
A73: Depreciation of temporary fence per year | B73: =IF(B70>0,B68/B70,"0") -> 0
A74: Replacement cost of temporary fence per year | B74: =B68*B71 -> 0
A76: TOTAL TEMPORARY FENCE ANNUAL COST | B76: =B73+B74 -> 0
A77: Total temporary fence cost per cow | B77: =IF('Breeding Herd'!$B$4>0,B76/'Breeding Herd'!$B$4,"0") -> 0
A79: Water System
A80: ='Questions for Producers'!A346 -> How do you get your animals water? | B80: ='Questions for Producers'!B346 -> 0
A81: ='Questions for Producers'!A347 -> Polypipe length | B81: ='Questions for Producers'!B347 -> 0 | C81: ='Questions for Producers'!C347 -> miles
A82: ='Questions for Producers'!A348 -> Installation cost per foot | B82: ='Questions for Producers'!B348 -> 0 | C82: ='Questions for Producers'!C348 -> per foot
A83: ='Questions for Producers'!A349 -> How long does the polypipe last | B83: ='Questions for Producers'!B349 -> 0 | C83: ='Questions for Producers'!C349 -> years
A84: ='Questions for Producers'!A350 -> Percent of polypipe repaired each year | B84: ='Questions for Producers'!B350 -> 0 | C84: ='Questions for Producers'!C350 -> per year
A85: Cost of polypipe installation | B85: =B81*5820*B82 -> 0
A87: Depreciation of polypipe per year | B87: =IF(B83>0,B85/B83,"0") -> 0
A88: Replacement/repair cost of polypipe per year | B88: =B85*B84 -> 0
A90: ='Questions for Producers'!A352 -> Number of water troughs | B90: ='Questions for Producers'!B352 -> 0
A91: ='Questions for Producers'!A353 -> Cost per water trough | B91: ='Questions for Producers'!B353 -> 0 | C91: ='Questions for Producers'!C353 -> per water trough
A92: ='Questions for Producers'!A354 -> How long do water troughs last | B92: ='Questions for Producers'!B354 -> 0 | C92: ='Questions for Producers'!C354 -> years
A93: ='Questions for Producers'!A355 -> Percent of watertroughs repaired each year | B93: ='Questions for Producers'!B355 -> 0 | C93: ='Questions for Producers'!C355 -> per year
A94: Cost of water troughs | B94: =B91*B90 -> 0
A96: Depreciation of water troughs per year | B96: =IF(B92>0,B94/B92,"0") -> 0
A97: Replacement/repair cost of water troughs per year | B97: =B94*B93 -> 0
A99: ='Questions for Producers'!A357 -> Do you have a portable water system | B99: ='Questions for Producers'!B357 -> 0
A100: ='Questions for Producers'!A358 -> Cost of portable water system | B100: ='Questions for Producers'!B358 -> 0
A101: ='Questions for Producers'!A359 -> How long does the portable water system last | B101: ='Questions for Producers'!B359 -> 0 | C101: ='Questions for Producers'!C359 -> years
A102: ='Questions for Producers'!A360 -> Percent of portable water system repaired each year | B102: ='Questions for Producers'!B360 -> 0 | C102: ='Questions for Producers'!C360 -> per year
A104: Depreciation of portable water system per year | B104: =IF(B101>0,B100/B101,"0") -> 0
A105: Replacement/repair cost of portable water system per year | B105: =B102*B100 -> 0
A107: TOTAL WATER SYSTEM ANNUAL COST | B107: =B97+B96+B87+B88+B104+B105 -> 0
A108: Total water system cost per cow | B108: =IF('Breeding Herd'!$B$4>0,B107/'Breeding Herd'!$B$4,"0") -> 0
A110: Equipment
A111: ='Questions for Producers'!A363 -> Equipment 1 description | B111: ='Questions for Producers'!B363 -> 0
A112: ='Questions for Producers'!A364 -> Age | B112: ='Questions for Producers'!B364 -> 0 | C112: ='Questions for Producers'!C364 -> years
A113: ='Questions for Producers'!A365 -> Useful life | B113: ='Questions for Producers'!B365 -> 0 | C113: ='Questions for Producers'!C365 -> years
A114: ='Questions for Producers'!A366 -> Original purchase price | B114: ='Questions for Producers'!B366 -> 0
A115: ='Questions for Producers'!A367 -> Salvage value at end of useful life | B115: ='Questions for Producers'!B367 -> 0
A116: ='Questions for Producers'!A368 -> Percent of use allocated to cow-calf enterprise | B116: ='Questions for Producers'!B368 -> 0
A117: Depreciation cost per year | B117: =IF(B113>0,(B114-B115)/B113,"0") -> 0
A118: Depreciation cost per year allocated to cow-calf operation | B118: =B116*B117 -> 0
A120: ='Questions for Producers'!A372 -> Equipment 2 description | B120: ='Questions for Producers'!B372 -> 0
A121: ='Questions for Producers'!A373 -> Age | B121: ='Questions for Producers'!B373 -> 0 | C121: ='Questions for Producers'!C373 -> years
A122: ='Questions for Producers'!A374 -> Useful life | B122: ='Questions for Producers'!B374 -> 0 | C122: ='Questions for Producers'!C374 -> years
A123: ='Questions for Producers'!A375 -> Original purchase price | B123: ='Questions for Producers'!B375 -> 0
A124: ='Questions for Producers'!A376 -> Salvage value at end of useful life | B124: ='Questions for Producers'!B376 -> 0
A125: ='Questions for Producers'!A377 -> Percent of use allocated to cow-calf enterprise | B125: ='Questions for Producers'!B377 -> 0
A126: Depreciation per year | B126: =IF(B122>0,(B123-B124)/B122,"0") -> 0
A127: Depreciation cost per year allocated to cow-calf operation | B127: =B125*B126 -> 0
A129: ='Questions for Producers'!A381 -> Equipment 3 description | B129: ='Questions for Producers'!B381 -> 0
A130: ='Questions for Producers'!A382 -> Age | B130: ='Questions for Producers'!B382 -> 0 | C130: ='Questions for Producers'!C382 -> years
A131: ='Questions for Producers'!A383 -> Useful life | B131: ='Questions for Producers'!B383 -> 0 | C131: ='Questions for Producers'!C383 -> years
A132: ='Questions for Producers'!A384 -> Original purchase price | B132: ='Questions for Producers'!B384 -> 0
A133: ='Questions for Producers'!A385 -> Salvage value at end of useful life | B133: ='Questions for Producers'!B385 -> 0
A134: ='Questions for Producers'!A386 -> Percent of use allocated to cow-calf enterprise | B134: ='Questions for Producers'!B386 -> 0
A135: Depreciation per year | B135: =IF(B131>0,(B132-B133)/B131,"0") -> 0
A136: Depreciation cost per year allocated to cow-calf operation | B136: =B134*B135 -> 0
A138: ='Questions for Producers'!A390 -> Equipment 4 description | B138: ='Questions for Producers'!B390 -> 0
A139: ='Questions for Producers'!A391 -> Age | B139: ='Questions for Producers'!B391 -> 0 | C139: ='Questions for Producers'!C391 -> years
A140: ='Questions for Producers'!A392 -> Useful life | B140: ='Questions for Producers'!B392 -> 0 | C140: ='Questions for Producers'!C392 -> years
A141: ='Questions for Producers'!A393 -> Original purchase price | B141: ='Questions for Producers'!B393 -> 0
A142: ='Questions for Producers'!A394 -> Salvage value at end of useful life | B142: ='Questions for Producers'!B394 -> 0
A143: ='Questions for Producers'!A395 -> Percent of use allocated to cow-calf enterprise | B143: ='Questions for Producers'!B395 -> 0
A144: Depreciation per year | B144: =IF(B140>0,(B141-B142)/B140,"0") -> 0
A145: Depreciation cost per year allocated to cow-calf operation | B145: =B143*B144 -> 0
A147: ='Questions for Producers'!A399 -> Equipment 5 description | B147: ='Questions for Producers'!B399 -> 0
A148: ='Questions for Producers'!A400 -> Age | B148: ='Questions for Producers'!B400 -> 0 | C148: ='Questions for Producers'!C400 -> years
A149: ='Questions for Producers'!A401 -> Useful life | B149: ='Questions for Producers'!B401 -> 0 | C149: ='Questions for Producers'!C401 -> years
A150: ='Questions for Producers'!A402 -> Original purchase price | B150: ='Questions for Producers'!B402 -> 0
A151: ='Questions for Producers'!A403 -> Salvage value at end of useful life | B151: ='Questions for Producers'!B403 -> 0
A152: ='Questions for Producers'!A404 -> Percent of use allocated to cow-calf enterprise | B152: ='Questions for Producers'!B404 -> 0
A153: Depreciation per year | B153: =IF(B149>0,(B150-B151)/B149,"0") -> 0
A154: Depreciation cost per year allocated to cow-calf operation | B154: =B153*B152 -> 0
A156: ='Questions for Producers'!A408 -> Equipment 6 description | B156: ='Questions for Producers'!B408 -> 0
A157: ='Questions for Producers'!A409 -> Age | B157: ='Questions for Producers'!B409 -> 0 | C157: ='Questions for Producers'!C409 -> years
A158: ='Questions for Producers'!A410 -> Useful life | B158: ='Questions for Producers'!B410 -> 0 | C158: ='Questions for Producers'!C410 -> years
A159: ='Questions for Producers'!A411 -> Original purchase price | B159: ='Questions for Producers'!B411 -> 0
A160: ='Questions for Producers'!A412 -> Salvage value at end of useful life | B160: ='Questions for Producers'!B412 -> 0
A161: ='Questions for Producers'!A413 -> Percent of use allocated to cow-calf enterprise | B161: ='Questions for Producers'!B413 -> 0
A162: Depreciation per year | B162: =IF(B158>0,(B159-B160)/B158,"0") -> 0
A163: Depreciation cost per year allocated to cow-calf operation | B163: =B161*B162 -> 0
A165: ='Questions for Producers'!A417 -> Equipment 7 description | B165: ='Questions for Producers'!B417 -> 0
A166: ='Questions for Producers'!A418 -> Age | B166: ='Questions for Producers'!B418 -> 0 | C166: ='Questions for Producers'!C418 -> years
A167: ='Questions for Producers'!A419 -> Useful life | B167: ='Questions for Producers'!B419 -> 0 | C167: ='Questions for Producers'!C419 -> years
A168: ='Questions for Producers'!A420 -> Original purchase price | B168: ='Questions for Producers'!B420 -> 0
A169: ='Questions for Producers'!A421 -> Salvage value at end of useful life | B169: ='Questions for Producers'!B421 -> 0
A170: ='Questions for Producers'!A422 -> Percent of use allocated to cow-calf enterprise | B170: ='Questions for Producers'!B422 -> 0
A171: Depreciation per year | B171: =IF(B167>0,(B168-B169)/B167,"0") -> 0
A172: Depreciation cost per year allocated to cow-calf operation | B172: =B171*B170 -> 0
A174: ='Questions for Producers'!A426 -> Equipment 8 description | B174: ='Questions for Producers'!B426 -> 0
A175: ='Questions for Producers'!A427 -> Age | B175: ='Questions for Producers'!B427 -> 0 | C175: ='Questions for Producers'!C427 -> years
A176: ='Questions for Producers'!A428 -> Useful life | B176: ='Questions for Producers'!B428 -> 0 | C176: ='Questions for Producers'!C428 -> years
A177: ='Questions for Producers'!A429 -> Original purchase price | B177: ='Questions for Producers'!B429 -> 0
A178: ='Questions for Producers'!A430 -> Salvage value at end of useful life | B178: ='Questions for Producers'!B430 -> 0
A179: ='Questions for Producers'!A431 -> Percent of use allocated to cow-calf enterprise | B179: ='Questions for Producers'!B431 -> 0
A180: Depreciation per year | B180: =IF(B176>0,(B177-B178)/B176,"0") -> 0
A181: Depreciation cost per year allocated to cow-calf operation | B181: =B179*B180 -> 0
A183: ='Questions for Producers'!A435 -> Equipment 9 description | B183: ='Questions for Producers'!B435 -> 0
A184: ='Questions for Producers'!A436 -> Age | B184: ='Questions for Producers'!B436 -> 0 | C184: ='Questions for Producers'!C436 -> years
A185: ='Questions for Producers'!A437 -> Useful life | B185: ='Questions for Producers'!B437 -> 0 | C185: ='Questions for Producers'!C437 -> years
A186: ='Questions for Producers'!A438 -> Original purchase price | B186: ='Questions for Producers'!B438 -> 0
A187: ='Questions for Producers'!A439 -> Salvage value at end of useful life | B187: ='Questions for Producers'!B439 -> 0
A188: ='Questions for Producers'!A440 -> Percent of use allocated to cow-calf enterprise | B188: ='Questions for Producers'!B440 -> 0
A189: Depreciation per year | B189: =IF(B185>0,(B186-B187)/B185,"0") -> 0
A190: Depreciation cost per year allocated to cow-calf operation | B190: =B188*B189 -> 0
A192: Total equipment depreciation cost per year | B192: =B180+B171+B162+B153+B144+B135+B126+B117+B189 -> 0
A193: TOTAL EQUIPMENT DEPRECIATION COST ALLOCATED TO COW-CALF OPERATION | B193: =B181+B172+B163+B154+B145+B136+B127+B118+B190 -> 0
A194: Total equipment depreciation cost allocated to cow-calf operation per cow | B194: =IF('Breeding Herd'!$B$4>0,B193/'Breeding Herd'!$B$4,"0") -> 0
A196: Pickup/Trucks
A197: ='Questions for Producers'!A443 -> Pickup/Truck 1 | B197: ='Questions for Producers'!B443 -> 0
A198: ='Questions for Producers'!A444 -> Age | B198: ='Questions for Producers'!B444 -> 0 | C198: ='Questions for Producers'!C444 -> years
A199: ='Questions for Producers'!A445 -> Useful life | B199: ='Questions for Producers'!B445 -> 0 | C199: ='Questions for Producers'!C445 -> years
A200: ='Questions for Producers'!A446 -> Original purchase price | B200: ='Questions for Producers'!B446 -> 0
A201: ='Questions for Producers'!A447 -> Salvage value at end of useful life | B201: ='Questions for Producers'!B447 -> 0
A202: ='Questions for Producers'!A448 -> Percent of use allocated to cow-calf enterprise | B202: ='Questions for Producers'!B448 -> 0
A203: Depreciation per year | B203: =IF(B199>0,(B200-B201)/B199,"0") -> 0
A204: Depreciation cost per year allocated to cow-calf operation | B204: =B203*B202 -> 0
A206: ='Questions for Producers'!A452 -> Pickup/Truck 2 | B206: ='Questions for Producers'!B452 -> 0
A207: ='Questions for Producers'!A453 -> Age | B207: ='Questions for Producers'!B453 -> 0 | C207: ='Questions for Producers'!C453 -> years
A208: ='Questions for Producers'!A454 -> Useful life | B208: ='Questions for Producers'!B454 -> 0 | C208: ='Questions for Producers'!C454 -> years
A209: ='Questions for Producers'!A455 -> Original purchase price | B209: ='Questions for Producers'!B455 -> 0
A210: ='Questions for Producers'!A456 -> Salvage value at end of useful life | B210: ='Questions for Producers'!B456 -> 0
A211: ='Questions for Producers'!A457 -> Percent of use allocated to cow-calf enterprise | B211: ='Questions for Producers'!B457 -> 0
A212: Depreciation per year | B212: =IF(B208>0,(B209-B210)/B208,"0") -> 0
A213: Depreciation cost per year allocated to cow-calf operation | B213: =B211*B212 -> 0
A215: Total pickup/truck depreciation cost per year | B215: =B212+B203 -> 0
A216: TOTAL PICKUP/TRUCK DEPRECIATION COST ALLOCATED TO COW-CALF OPEARATION | B216: =B213+B204 -> 0
A217: Total pickup/truck depreciation cost allocated to cow-calf operation per cow | B217: =IF('Breeding Herd'!$B$4>0,B216/'Breeding Herd'!$B$4,"0") -> 0
A219: ='Questions for Producers'!A459 -> Equipment repair and upkeep costs estimate per year | B219: ='Questions for Producers'!B459 -> 0
A220: Estimated equipment and truck repair costs per year per cow | B220: =IF('Breeding Herd'!$B$4>0,B219/'Breeding Herd'!$B$4,"0") -> 0

Sheet Fuel and Utilities
B1: ='Questions for Producers'!B4 -> Oct 1 2017- Sept 30 2018 | F1: Coming from "Questions from producers tab"
F2: Formula
A3: ='Questions for Producers'!A462 -> Fuel
A4: ='Questions for Producers'!A463 -> Average gas purchased per week | B4: ='Questions for Producers'!B463 -> 0 | C4: ='Questions for Producers'!C463 -> gallons
A5: ='Questions for Producers'!A464 -> Average price of gas | B5: ='Questions for Producers'!B464 -> 0 | C5: ='Questions for Producers'!C464 -> per gallon
A6: Yearly gas costs | B6: =B5*B4*52 -> 0
A8: ='Questions for Producers'!A465 -> Average diesel purchased per week | B8: ='Questions for Producers'!B465 -> 0 | C8: ='Questions for Producers'!C465 -> gallons
A9: ='Questions for Producers'!A466 -> Average price of diesel | B9: ='Questions for Producers'!B466 -> 0 | C9: ='Questions for Producers'!C466 -> per gallon
A10: Yearly diesel costs | B10: =B9*B8*52 -> 0
A12: TOTAL FUEL COST | B12: =SUM(B6,B10) -> 0
A13: Total fuel cost per cow | B13: =IF('Breeding Herd'!$B$4>0,B12/'Breeding Herd'!$B$4,"0") -> 0
A15: ='Questions for Producers'!A468 -> Utilities
A16: ='Questions for Producers'!A469 -> Utility 1 Description | B16: ='Questions for Producers'!B469 -> 0
A17: ='Questions for Producers'!A470 -> Average monthly cost | B17: ='Questions for Producers'!B470 -> 0
A18: ='Questions for Producers'!A471 -> Allocation to cow-calf enterprise | B18: ='Questions for Producers'!B471 -> 0
A19: Utility 1 cow-calf total | B19: =B17*B18*12 -> 0
A21: ='Questions for Producers'!A475 -> Utility 2 Description | B21: ='Questions for Producers'!B475 -> 0
A22: ='Questions for Producers'!A476 -> Average monthly cost | B22: ='Questions for Producers'!B476 -> 0
A23: ='Questions for Producers'!A477 -> Allocation to cow-calf enterprise | B23: ='Questions for Producers'!B477 -> 0
A24: Utility 2 cow-calf total | B24: =B22*B23*12 -> 0
A26: ='Questions for Producers'!A481 -> Utility 3 Description | B26: ='Questions for Producers'!B481 -> 0
A27: ='Questions for Producers'!A482 -> Average monthly cost | B27: ='Questions for Producers'!B482 -> 0
A28: ='Questions for Producers'!A483 -> Allocation to cow-calf enterprise | B28: ='Questions for Producers'!B483 -> 0
A29: Utility 3 cow-calf total | B29: =B27*B28*12 -> 0
A31: ='Questions for Producers'!A487 -> Utility 4 Description | B31: ='Questions for Producers'!B487 -> 0
A32: ='Questions for Producers'!A488 -> Average monthly cost | B32: ='Questions for Producers'!B488 -> 0
A33: ='Questions for Producers'!A489 -> Allocation to cow-calf enterprise | B33: ='Questions for Producers'!B489 -> 0
A34: Utility 4 cow-calf total | B34: =B32*B33*12 -> 0
A36: TOTAL UTILITY COSTS ALLOCATED TO COW-CALF ENTERPRISE | B36: =B34+B29+B24+B19 -> 0
A37: Total utility costs allocated to cow-calf enterprise per cow | B37: =IF('Breeding Herd'!$B$4>0,B36/'Breeding Herd'!$B$4,"0") -> 0
A39: TOTAL FUEL AND UTILITIES | B39: =SUM(B36,B12) -> 0
A40: Total fuel and utilities per cow | B40: =IF('Breeding Herd'!$B$4>0,B39/'Breeding Herd'!$B$4,"0") -> 0

Sheet Operating Loan and Interest
B1: ='Questions for Producers'!B4 -> Oct 1 2017- Sept 30 2018 | F1: Coming from "Questions from producers tab"
F2: Formula
A3: ='Questions for Producers'!A525 -> Operating Loans
A4: ='Questions for Producers'!A526 -> Do you have an operating loan? | B4: ='Questions for Producers'!B526 -> 0
A5: ='Questions for Producers'!A527 -> Amount financed under your operating loan | B5: ='Questions for Producers'!B527 -> 0
A6: ='Questions for Producers'!A528 -> Interest on operating loan | B6: ='Questions for Producers'!B528 -> 0
A7: ='Questions for Producers'!A529 -> Duration of operating loan | B7: ='Questions for Producers'!B529 -> 0 | C7: ='Questions for Producers'!C529 -> months
A8: Total cost of interest | B8: =(B6/12)*B5*B7 -> 0 | E8: Note: simple interest is used
A10: TOTAL OPERATING LOAN COST | B10: =B8 -> 0
A11: Total operating loan cost per cow | B11: =IF('Breeding Herd'!$B$4>0,B10/'Breeding Herd'!$B$4,"0") -> 0

Sheet Taxes
B1: ='Questions for Producers'!B4 -> Oct 1 2017- Sept 30 2018 | F1: Coming from "Questions from producers tab"
F2: Formula
A3: ='Questions for Producers'!A551 -> Taxes
A4: ='Questions for Producers'!A552 -> Total property tax | B4: ='Questions for Producers'!B552 -> 0
A5: ='Questions for Producers'!A553 -> Percent of property tax allocated to cow-calf enterprise | B5: ='Questions for Producers'!B553 -> 0
A6: ='Questions for Producers'!A554 -> Other taxes (not sales tax) associated with cow-calf enterprise | B6: ='Questions for Producers'!B554 -> 0
A8: TOTAL TAXES PAID PER YEAR FOR COW-CALF OPERATION | B8: =(B4*B5)+B6 -> 0
A9: Total taxes paid per year for cow-calf operation per cow | B9: =IF('Breeding Herd'!$B$4>0,B8/'Breeding Herd'!$B$4,"0") -> 0

Sheet Insurance
B1: ='Questions for Producers'!B4 -> Oct 1 2017- Sept 30 2018 | F1: Coming from "Questions from producers tab"
F2: Formula
A3: ='Questions for Producers'!A531 -> Insurance
A4: ='Questions for Producers'!A532 -> Insurance 1 Description | B4: ='Questions for Producers'!B532 -> 0
A5: ='Questions for Producers'!A533 -> Amount of liability covered | B5: ='Questions for Producers'!B533 -> 0
A6: ='Questions for Producers'!A534 -> Premium | B6: ='Questions for Producers'!B534 -> 0 | C6: ='Questions for Producers'!C534 -> 0
A7: ='Questions for Producers'!A535 -> Allocation to cow-calf enterprise | B7: ='Questions for Producers'!B535 -> 0
A8: Number of payments | B8: =IF(C6="monthly",12,(IF(C6="semiannual",2,(IF(C6="annually",1,0))))) -> 0
A9: Total annual cost for cow-calf enterprise | B9: =B8*B7*B6 -> 0
A11: ='Questions for Producers'!A539 -> Insurance 2 Description | B11: ='Questions for Producers'!B539 -> 0
A12: ='Questions for Producers'!A540 -> Amount of liability covered | B12: ='Questions for Producers'!B540 -> 0
A13: ='Questions for Producers'!A541 -> Premium | B13: ='Questions for Producers'!B541 -> 0 | C13: ='Questions for Producers'!C541 -> 0
A14: ='Questions for Producers'!A542 -> Allocation to cow-calf enterprise | B14: ='Questions for Producers'!B542 -> 0
A15: Number of payments | B15: =IF(C13="monthly",12,(IF(C6="semiannual",2,(IF(C6="annually",1,0))))) -> 0
A16: Total annual cost for cow-calf enterprise | B16: =B13*B14*B15 -> 0
A18: ='Questions for Producers'!A546 -> Insurance 3 Description | B18: ='Questions for Producers'!B546 -> 0
A19: ='Questions for Producers'!A547 -> Amount of liability covered | B19: ='Questions for Producers'!B547 -> 0
A20: ='Questions for Producers'!A548 -> Premium | B20: ='Questions for Producers'!B548 -> 0 | C20: ='Questions for Producers'!C548 -> 0
A21: ='Questions for Producers'!A549 -> Allocation to cow-calf enterprise | B21: ='Questions for Producers'!B549 -> 0
A22: Number of payments | B22: =IF(C20="monthly",12,(IF(C6="semiannual",2,(IF(C6="annually",1,0))))) -> 0
A23: Total annual cost for cow-calf enterprise | B23: =B20*B22*B21 -> 0
A25: Total insurance cost per year | B25: =(B6*B8)+(B13*B15)+(B20*B22) -> 0
A26: TOTAL INSURANCE COST ALLOCATED TO COW-CALF OPEARATION | B26: =B9+B16+B23 -> 0
A27: Total insurance cost allocated to cow-calf operation per cow | B27: =IF('Breeding Herd'!$B$4>0,B26/'Breeding Herd'!B4,"0") -> 0

Sheet Assumptions
A1: Assumed Prices | B1: Price | C1: Unit | D1: Source | G1: Assumed Economic/Useful Life | H1: Years | I1: Source
A3: Land rental rate | B3: 35 | C3: acre | D3: AVG amp and non-amp | G3: Equipment
G4: Machinery | H4: 10 | I4: Iowa State Extension
A5: Animals | G5: Tractors | H5: 15 | I5: Iowa State Extension
A6: Average price per cwt for feeder steer | B6: 138.39 | C6: per cwt | D6: LMIC
A7: Average price per cwt for feeder heifer | B7: 123.49 | C7: per cwt | D7: LMIC | G7: Buildings/Structures/Facilities
A8: Average price per cwt for cull cow | B8: 53.2 | C8: per cwt | D8: LMIC | G8: Corral - squeeze chute | H8: 10 | I8: Iowa State Extension
A9: Price per cwt of replacement heifers | B9: 150 | C9: per cwt | D9: LMIC | G9: Fly control facility | H9: 10 | I9: Iowa State Extension
A10: Expected price per cwt of replacement heifers | B10: 150 | C10: per cwt | D10: LMIC | G10: Barn | H10: 20 | I10: Rural Tax Education
A11: Assumed market cost percent | B11: 0.02
A12: Value of bull ($/head) | B12: 6000 | C12: per head
A13: Salvage value of bull | B13: 1311.22 | C13: per head
A14: Beef Check-Off | B14: 1 | C14: per head
A16: Feed, Hay and Supplements
A17: Feed
A18: Corn | B18: 3.4 | C18: bu | D18: USDA
A19: Range cubes | B19: =11.5/50 -> 0.23 | C19: lb | D19: TSC
A21: Hay
A22: Pasture grass hay | B22: 104 | C22: ton | D22: USDA
A23: Alfalfa hay | B23: 166.67 | C23: ton | D23: USDA
A25: Supplements
A26: Protein Tub (200 lb) | B26: 69.99 | C26: per tub | D26: TSC
A27: Sulfur Salt (50 lb block) | B27: 8.29 | C27: per block | D27: TSC
A28: Trace Mineral Salt (50 lb block) | B28: 6.49 | C28: per block | D28: Rural King
A29: Protein 24% Tub Sweetlix (200 lb) | B29: 80.11 | C29: per tub | D29: Feeds For Less
A31: Fertilizers
A32: Nitrogen (lb.) | B32: 0.17 | C32: lb | D32: Range Day
A33: Urea | B33: 0.44 | C33: lb | D33: dtnpf
A34: Phosphate | B34: 0.23 | C34: lb | D34: Range Day
A35: Potash (K-20) | B35: 0.16 | C35: lb | D35: Range Day
A36: Lime | B36: 12 | C36: ton | D36: MSU
A37: Chicken Litter | B37: =70.7/2000 -> 0.03535 | C37: lb | D37: Drovers
A38: Triple 19 | B38: =57/25 -> 2.28 | C38: lb | D38: Amazon
A39: Fish Emulsion | B39: 35 | C39: gal | D39: Amazon
A40: Sea-90 sea salt | B40: =35/50 -> 0.7 | C40: lb | D40: seaagri.com
A43: Herbicides
A44: Crossbow | B44: 47.97 | C44: gal | D44: Rural King
A45: 2,4 D | B45: =44.95/2.5 -> 17.98 | C45: gal | D45: Keyston Pest Solutions
A46: Round Up Concentrate | B46: =77.67/85 -> 0.9137647059 | C46: gal made | D46: Amazon
A49: Cover crops
A50: Winter Mix | B50: =16.99/1.5 -> 11.32666667 | C50: lb | D50: Gardens Alive
A51: Rye | B51: =10.95/5 -> 2.19 | C51: lb | D51: Hudson Valley Seed
A52: Red Clover | B52: =17.99/5 -> 3.598 | C52: lb | D52: Amazon
A54: Vaccine prices
A55: Blackleg 7-way | B55: =45.79/50 -> 0.9158 | C55: ds | D55: Valley Vet
A56: Cattlemaster 4 in 1 | B56: 3.56 | C56: ds | D56: Valley Vet
A57: pink eye | B57: =44.29/50 -> 0.8858 | C57: ds | D57: Valley Vet
A58: Tetnas Toxoid | B58: =21.99/10 -> 2.199 | C58: ds | D58: Valley Vet
A61: Identification prices
A62: y-tex tag | B62: =26.99/25 -> 1.0796 | C62: tag | D62: Valley Vet
A63: EID tag | B63: =44.95/20 -> 2.2475 | C63: tag | D63: Valley Vet
A64: z-tag | B64: =31.49/25 -> 1.2596 | C64: tag | D64: Valley Vet
A65: Metal Cattle ID Ear Tag | B65: =19.99/100 -> 0.1999 | C65: tag | D65: Valley Vet
A67: Dewormer prices
A68: Cydectin Moxidectin | B68: =109/40 -> 2.725 | C68: ds | D68: Circle C Country Supply
A69: Eprizero Eprinomectin Pour-On for Beef & Dairy Cattle | B69: 0.09 | C69: mL | D69: Valley Vet
A70: Ivromec | B70: =40.95/50 -> 0.819 | C70: mL | D70: Valley Vet
A71: Ivermectin Pour On | B71: =20/250 -> 0.08 | C71: mL | D71: TSC
A73: Other medication
A74: LA200 | B74: =24.99/100 -> 0.2499 | C74: mL | D74: Valley Vet
A76: Fly Control
A77: Martin's Permethrin Pour-On | B77: =58.95/2.5 -> 23.58 | C77: gal | D77: Valley Vet
A78: Pyranha Fly Space Spray | B78: =219.55/2.5 -> 87.82 | C78: gal | D78: Valley Vet
A80: Temporary Fence
A81: Price per reel | B81: 67.95 | C81: per reel | D81: Valley Vet
A82: Pushing post cost | B82: 3.49 | C82: per post | D82: Valley Vet
A83: Charger cost | B83: 60 | C83: per charger
A85: Water
A86: Poly pipe cost | B86: 1.15 | C86: per foot
A87: 115 gallon water trough | B87: 121.95 | C87: per trough | D87: Global Industrial
A88: 700 gallon water trough | B88: 341.95 | C88: per trough | D88: Global Industrial
A90: Farm Wages
A91: Labor | B91: 10 | C91: per hour | D91: USDA
A92: Management | B92: 20 | C92: per hour | D92: USDA
